Workbook

Sheet Vattenfall lajit
B1: Vattenfall-seuracup
B2: Juoksumatkoissa syötä aika sekunteina.
B3: Kenttälajeissa korkeus, seiväs ja pituus senteissä, muut metreissä
G5: Kesäkuun lajit | CA5: Heinä/elokuun lajit
G6: T11 60m | I6: P11 60m | K6: T11 1000m | M6: P11 1000m | O6: T11 pituus | Q6: P11 pituus | S6: T11 kiekko | U6: P11 kiekko | W6: T11 4x50m | Y6: P11 4x50m | AA6: T13 60m | AC6: P13 60m | AE6: T13 1000m | AG6: P13 1000m | AI6: T13 korkeus | AK6: P13 korkeus | AM6: T13 keihäs | AO6: P13 keihäs | AQ6: T13 4x100m | AS6: P13 4x100m | AU6: T15 100m | AW6: P15 100m | AY6: T15 2000m | BA6: P15 2000m | BC6: T15 seiväs | BE6: P15 seiväs | BG6: T15 kuula | BI6: P15 kuula | BK6: T15 4x100m | BM6: P15 4x100m | BO6: N17 200m | BQ6: M17 200m | BS6: N17 3-loikka | BU6: M17 3-loikka | BW6: N17 kuula | BY6: M17 kuula | CA6: T11 60m aj | CC6: P11 60m aj | CE6: T11 150m | CG6: P11 150m | CI6: T11 korkeus | CK6: P11 korkeus | CM6: T11 kuula | CO6: P11 kuula | CQ6: T/P11 4x600m | CS6: T/P11 kävely | CU6: T13 60m aj | CW6: P13 60m aj | CY6: T13 200m | DA6: P13 200m | DC6: T13 pituus | DE6: P13 pituus | DG6: T13 kuula | DI6: P13 kuula | DK6: T/P13 4x600m | DM6: T/P13 kävely | DO6: T15 80m aj | DQ6: P15 100m aj | DS6: T15 300m | DU6: P15 300m | DW6: T15 3-loikka | DY6: P15 3-loikka | EA6: T15 moukari | EC6: P15 moukari | EE6: T/P15 4x800m | EG6: T/P15 kävely | EI6: N17 800m | EK6: M17 800m | EM6: N17 seiväs | EO6: M17 seiväs | EQ6: N17 keihäs | ES6: M17 keihäs
B7: Seurat | C7: kesä | D7: heinä/elo | E7: Yht | F7: Ero | G7: tulos | H7: pist. | I7: tulos | J7: pist. | K7: tulos | L7: pist. | M7: tulos | N7: pist. | O7: tulos | P7: pist. | Q7: tulos | R7: pist. | S7: tulos | T7: pist. | U7: tulos | V7: pist. | W7: tulos | X7: pist. | Y7: tulos | Z7: pist. | AA7: tulos | AB7: pist. | AC7: tulos | AD7: pist. | AE7: tulos | AF7: pist. | AG7: tulos | AH7: pist. | AI7: tulos | AJ7: pist. | AK7: tulos | AL7: pist. | AM7: tulos | AN7: pist. | AO7: tulos | AP7: pist. | AQ7: tulos | AR7: pist. | AS7: tulos | AT7: pist. | AU7: tulos | AV7: pist. | AW7: tulos | AX7: pist. | AY7: tulos | AZ7: pist. | BA7: tulos | BB7: pist. | BC7: tulos | BD7: pist. | BE7: tulos | BF7: pist. | BG7: tulos | BH7: pist. | BI7: tulos | BJ7: pist. | BK7: tulos | BL7: pist. | BM7: tulos | BN7: pist. | BO7: tulos | BP7: pist. | BQ7: tulos | BR7: pist. | BS7: tulos | BT7: pist. | BU7: tulos | BV7: pist. | BW7: tulos | BX7: pist. | BY7: tulos | BZ7: pist. | CA7: tulos | CB7: pist. | CC7: tulos | CD7: pist. | CE7: tulos | CF7: pist. | CG7: tulos | CH7: pist. | CI7: tulos | CJ7: pist. | CK7: tulos | CL7: pist. | CM7: tulos | CN7: pist. | CO7: tulos | CP7: pist. | CQ7: tulos | CR7: pist. | CS7: tulos | CT7: pist. | CU7: tulos | CV7: pist. | CW7: tulos | CX7: pist. | CY7: tulos | CZ7: pist. | DA7: tulos | DB7: pist. | DC7: tulos | DD7: pist. | DE7: tulos | DF7: pist. | DG7: tulos | DH7: pist. | DI7: tulos | DJ7: pist. | DK7: tulos | DL7: pist. | DM7: tulos | DN7: pist. | DO7: tulos | DP7: pist. | DQ7: tulos | DR7: pist. | DS7: tulos | DT7: pist. | DU7: tulos | DV7: pist. | DW7: tulos | DX7: pist. | DY7: tulos | DZ7: pist. | EA7: tulos | EB7: pist. | EC7: tulos | ED7: pist. | EE7: tulos | EF7: pist. | EG7: tulos | EH7: pist. | EI7: tulos | EJ7: pist. | EK7: tulos | EL7: pist. | EM7: tulos | EN7: pist. | EO7: tulos | EP7: pist. | EQ7: tulos | ER7: pist. | ES7: tulos | ET7: pist. | EW7: apu_kesä | EX7: apu_heinä/elo | EY7: apu_Yht
A8: 1 | B8: HYVINKÄÄN SEUDUN URHEILIJAT | C8: =SUM(H8+J8+L8+N8+P8+R8+AT8+BL8+BN8+T8+V8+X8+Z8+AB8+AD8+AF8+AH8+AJ8+AL8+AN8+AP8+AR8+AV8+AX8+AZ8+BX8+BB8+BD8+BF8+BH8+BJ8+BP8+BR8+BT8+BV8+BZ8) -> 13686 | D8: =SUM(CB8+CD8+CF8+CH8+CJ8+CL8+CN8+CP8+CR8+CV8+CT8+EH8+DN8+CX8+CZ8+DB8+DD8+DF8+DH8+DJ8+DL8+DP8+DR8+DT8+DV8+DX8+DZ8+EB8+ED8+EF8+EJ8+EL8+EN8+EP8+ER8+ET8) -> 14632 | E8: =C8+D8 -> 28318 | F8: =IF(E8=0,0,$E$8-E8) -> 0 | G8: 9.6 | H8: =ROUNDDOWN(IF(ISBLANK(G8),0,INT((1010/((G8/7.38)^4.7619))-10)),0) -> 278 | I8: 10.2 | J8: =ROUNDDOWN(IF(ISBLANK(I8),0,INT((1010/((I8/7.38)^4.7619))-10)),0) -> 206 | K8: 233.32 | L8: =ROUNDDOWN(IF(ISBLANK(K8),0,INT((1010/((K8/156.99)^4))-10)),0) -> 197 | M8: 215.39 | N8: =ROUNDDOWN(IF(ISBLANK(M8),0,INT((1010/((M8/156.99)^4))-10)),0) -> 275 | O8: 423 | P8: =ROUNDDOWN(IF(ISBLANK(O8),0,INT((1010/((676.5/O8)^2.439))-10)),0) -> 311 | Q8: 381 | R8: =ROUNDDOWN(IF(ISBLANK(Q8),0,INT((1010/((676.5/Q8)^2.439))-10)),0) -> 238 | S8: 19.83 | T8: =ROUNDDOWN(IF(ISBLANK(S8),0,INT((1010/((60.38/S8)^1.1765))-10)),0) -> 262 | U8: 21.87 | V8: =ROUNDDOWN(IF(ISBLANK(U8),0,INT((1010/((60.38/U8)^1.1765))-10)),0) -> 295 | W8: 31.55 | X8: =ROUNDDOWN(IF(ISBLANK(W8),0,INT((1010/((W8/21.9)^4.1667))-10)),0) -> 210 | Y8: 32.87 | Z8: =ROUNDDOWN(IF(ISBLANK(Y8),0,INT((1010/((Y8/21.9)^4.1667))-10)),0) -> 175 | AA8: 8.82 | AB8: =ROUNDDOWN(IF(ISBLANK(AA8),0,INT((1010/((AA8/7.38)^4.7619))-10)),0) -> 422 | AC8: 8.68 | AD8: =ROUNDDOWN(IF(ISBLANK(AC8),0,INT((1010/((AC8/7.38)^4.7619))-10)),0) -> 456 | AE8: 220.82 | AF8: =ROUNDDOWN(IF(ISBLANK(AE8),0,INT((1010/((AE8/156.99)^4))-10)),0) -> 248 | AG8: 264.31 | AH8: =ROUNDDOWN(IF(ISBLANK(AG8),0,INT((1010/((AG8/156.99)^4))-10)),0) -> 115 | AI8: 145 | AJ8: =ROUNDDOWN(IF(ISBLANK(AI8),0,INT((1010/((194.45/AI8)^2.9412))-10)),0) -> 416 | AK8: 120 | AL8: =ROUNDDOWN(IF(ISBLANK(AK8),0,INT((1010/((194.45/AK8)^2.9412))-10)),0) -> 234 | AM8: 19.24 | AN8: =ROUNDDOWN(IF(ISBLANK(AM8),0,INT((1010/((71.02/AM8)^1.1765))-10)),0) -> 207 | AO8: 34.72 | AP8: =ROUNDDOWN(IF(ISBLANK(AO8),0,INT((1010/((71.02/AO8)^1.1765))-10)),0) -> 425 | AQ8: 56.51 | AR8: =ROUNDDOWN(IF(ISBLANK(AQ8),0,INT((1010/((AQ8/44.45)^4))-10)),0) -> 376 | AS8: 58.67 | AT8: =ROUNDDOWN(IF(ISBLANK(AS8),0,INT((1010/((AS8/44.45)^4))-10)),0) -> 322 | AU8: 13.77 | AV8: =ROUNDDOWN(IF(ISBLANK(AU8),0,INT((1010/((AU8/11.41)^4.6512))-10)),0) -> 411 | AW8: 13.96 | AX8: =ROUNDDOWN(IF(ISBLANK(AW8),0,INT((1010/((AW8/11.41)^4.6512))-10)),0) -> 385 | AY8: 461.22 | AZ8: =ROUNDDOWN(IF(ISBLANK(AY8),0,INT((1010/((AY8/344.2)^3.8462))-10)),0) -> 317 | BA8: 445.82 | BB8: =ROUNDDOWN(IF(ISBLANK(BA8),0,INT((1010/((BA8/344.2)^3.8462))-10)),0) -> 363 | BC8: 285 | BD8: =ROUNDDOWN(IF(ISBLANK(BC8),0,INT((1010/((437.5/BC8)^1.9417))-10)),0) -> 429 | BE8: 420 | BF8: =ROUNDDOWN(IF(ISBLANK(BE8),0,INT((1010/((437.5/BE8)^1.9417))-10)),0) -> 923 | BG8: 11.88 | BH8: =ROUNDDOWN(IF(ISBLANK(BG8),0,INT((1010/((18.28/BG8)^1.2195))-10)),0) -> 587 | BI8: 9.22 | BJ8: =ROUNDDOWN(IF(ISBLANK(BI8),0,INT((1010/((18.28/BI8)^1.2195))-10)),0) -> 428 | BK8: 55.48 | BL8: =ROUNDDOWN(IF(ISBLANK(BK8),0,INT((1010/((BK8/44.45)^4))-10)),0) -> 406 | BM8: 51.41 | BN8: =ROUNDDOWN(IF(ISBLANK(BM8),0,INT((1010/((BM8/44.45)^4))-10)),0) -> 554 | BO8: 27.79 | BP8: =ROUNDDOWN(IF(ISBLANK(BO8),0,INT((1010/((BO8/23.09)^4.3478))-10)),0) -> 441 | BQ8: 24.25 | BR8: =ROUNDDOWN(IF(ISBLANK(BQ8),0,INT((1010/((BQ8/23.09)^4.3478))-10)),0) -> 806 | BS8: 9.53 | BT8: =ROUNDDOWN(IF(ISBLANK(BS8),0,INT((1010/((13.94/BS8)^2.5316))-10)),0) -> 375 | BU8: 11.5 | BV8: =ROUNDDOWN(IF(ISBLANK(BU8),0,INT((1010/((13.94/BU8)^2.5316))-10)),0) -> 610 | BW8: 10.35 | BX8: =ROUNDDOWN(IF(ISBLANK(BW8),0,INT((1010/((18.28/BW8)^1.2195))-10)),0) -> 494 | BY8: 10.27 | BZ8: =ROUNDDOWN(IF(ISBLANK(BY8),0,INT((1010/((18.28/BY8)^1.2195))-10)),0) -> 489 | CA8: 11.1 | CB8: =ROUNDDOWN(IF(ISBLANK(CA8),0,INT((1010/((CA8/8.57)^3.2258))-10)),0) -> 428 | CC8: 10.04 | CD8: =ROUNDDOWN(IF(ISBLANK(CC8),0,INT((1010/((CC8/8.57)^3.2258))-10)),0) -> 596 | CE8: 21.97 | CF8: =ROUNDDOWN(IF(ISBLANK(CE8),0,INT((1010/((CE8/17.21)^4.4444))-10)),0) -> 331 | CG8: 24.4 | CH8: =ROUNDDOWN(IF(ISBLANK(CG8),0,INT((1010/((CG8/17.21)^4.4444))-10)),0) -> 204 | CI8: 115 | CJ8: =ROUNDDOWN(IF(ISBLANK(CI8),0,INT((1010/((194.45/CI8)^2.9412))-10)),0) -> 205 | CK8: 110 | CL8: =ROUNDDOWN(IF(ISBLANK(CK8),0,INT((1010/((194.45/CK8)^2.9412))-10)),0) -> 179 | CM8: 9.24 | CN8: =ROUNDDOWN(IF(ISBLANK(CM8),0,INT((1010/((18.28/CM8)^1.2195))-10)),0) -> 429 | CO8: 7.2 | CP8: =ROUNDDOWN(IF(ISBLANK(CO8),0,INT((1010/((18.28/CO8)^1.2195))-10)),0) -> 314 | CQ8: 499.13 | CR8: =ROUNDDOWN(IF(ISBLANK(CQ8),0,INT((1010/((CQ8/369.31)^3.8462))-10)),0) -> 307 | CS8: 375.6 | CT8: =ROUNDDOWN(IF(ISBLANK(CS8),0,INT((1030/((CS8/234.84)^3.3333))-30)),0) -> 185 | CU8: 10.94 | CV8: =ROUNDDOWN(IF(ISBLANK(CU8),0,INT((1010/((CU8/8.57)^3.2258))-10)),0) -> 449 | CW8: 10.9 | CX8: =ROUNDDOWN(IF(ISBLANK(CW8),0,INT((1010/((CW8/8.57)^3.2258))-10)),0) -> 454 | CY8: 30.65 | CZ8: =ROUNDDOWN(IF(ISBLANK(CY8),0,INT((1010/((CY8/23.09)^4.3478))-10)),0) -> 284 | DA8: 29.04 | DB8: =ROUNDDOWN(IF(ISBLANK(DA8),0,INT((1010/((DA8/23.09)^4.3478))-10)),0) -> 362 | DC8: 455 | DD8: =ROUNDDOWN(IF(ISBLANK(DC8),0,INT((1010/((676.5/DC8)^2.439))-10)),0) -> 373 | DE8: 416 | DF8: =ROUNDDOWN(IF(ISBLANK(DE8),0,INT((1010/((676.5/DE8)^2.439))-10)),0) -> 298 | DG8: 9.31 | DH8: =ROUNDDOWN(IF(ISBLANK(DG8),0,INT((1010/((18.28/DG8)^1.2195))-10)),0) -> 433 | DI8: 9.45 | DJ8: =ROUNDDOWN(IF(ISBLANK(DI8),0,INT((1010/((18.28/DI8)^1.2195))-10)),0) -> 441 | DK8: 486.16 | DL8: =ROUNDDOWN(IF(ISBLANK(DK8),0,INT((1010/((DK8/369.31)^3.8462))-10)),0) -> 340 | DM8: 399.55 | DN8: =ROUNDDOWN(IF(ISBLANK(DM8),0,INT((1030/((DM8/234.84)^3.3333))-30)),0) -> 145 | DO8: 13.17 | DP8: =ROUNDDOWN(IF(ISBLANK(DO8),0,INT((1010/((DO8/11.07)^3.2258))-10)),0) -> 566 | DQ8: 16.09 | DR8: =ROUNDDOWN(IF(ISBLANK(DQ8),0,INT((1010/((DQ8/13.62)^3.2258))-10)),0) -> 579 | DS8: 47.2 | DT8: =ROUNDDOWN(IF(ISBLANK(DS8),0,INT((1010/((DS8/37.25)^4.0816))-10)),0) -> 374 | DU8: 41.58 | DV8: =ROUNDDOWN(IF(ISBLANK(DU8),0,INT((1010/((DU8/37.25)^4.0816))-10)),0) -> 634 | DW8: 10.37 | DX8: =ROUNDDOWN(IF(ISBLANK(DW8),0,INT((1010/((13.94/DW8)^2.5316))-10)),0) -> 467 | DY8: 9.01 | DZ8: =ROUNDDOWN(IF(ISBLANK(DY8),0,INT((1010/((13.94/DY8)^2.5316))-10)),0) -> 324 | EA8: 31.01 | EB8: =ROUNDDOWN(IF(ISBLANK(EA8),0,INT((1010/((62.58/EA8)^1.0309))-10)),0) -> 479 | EC8: 35.12 | ED8: =ROUNDDOWN(IF(ISBLANK(EC8),0,INT((1010/((62.58/EC8)^1.0309))-10)),0) -> 546 | EE8: 656.88 | EF8: =ROUNDDOWN(IF(ISBLANK(EE8),0,INT((1010/((EE8/507.08)^3.8462))-10)),0) -> 363 | EG8: 362.67 | EH8: =ROUNDDOWN(IF(ISBLANK(EG8),0,INT((1030/((EG8/234.84)^3.3333))-30)),0) -> 211 | EI8: 149.61 | EJ8: =ROUNDDOWN(IF(ISBLANK(EI8),0,INT((1010/((EI8/120.83)^4))-10)),0) -> 419 | EK8: 129.5 | EL8: =ROUNDDOWN(IF(ISBLANK(EK8),0,INT((1010/((EK8/120.83)^4))-10)),0) -> 755 | EM8: 350 | EN8: =ROUNDDOWN(IF(ISBLANK(EM8),0,INT((1010/((437.5/EM8)^1.9417))-10)),0) -> 644 | EO8: 350 | EP8: =ROUNDDOWN(IF(ISBLANK(EO8),0,INT((1010/((437.5/EO8)^1.9417))-10)),0) -> 644 | EQ8: 30.5 | ER8: =ROUNDDOWN(IF(ISBLANK(EQ8),0,INT((1010/((71.02/EQ8)^1.1765))-10)),0) -> 363 | ES8: 40.21 | ET8: =ROUNDDOWN(IF(ISBLANK(ES8),0,INT((1010/((71.02/ES8)^1.1765))-10)),0) -> 507 | EW8: =C8 -> 13686 | EX8: =D8 -> 14632 | EY8: =E8 -> 28318
A9: 2 | B9: KESKI-UUDENMAAN YLEISURHEILU | C9: 14083 | D9: 13980 | E9: 28063 | F9: 255 | G9: 9.41 | H9: 307 | I9: 9.25 | J9: 334 | K9: 225.89 | L9: 225 | M9: 241.7 | N9: 169 | O9: 428 | P9: 320 | Q9: 420 | R9: 305 | S9: 15.36 | T9: 191 | U9: 20.43 | V9: 272 | W9: 30.23 | X9: 253 | Y9: 31.89 | Z9: 200 | AA9: 8.52 | AB9: 499 | AC9: 8.85 | AD9: 415 | AE9: 213.12 | AF9: 287 | AG9: 200.38 | AH9: 370 | AI9: 130 | AJ9: 299 | AK9: 135 | AL9: 335 | AM9: 28.57 | AN9: 335 | AO9: 26.37 | AP9: 304 | AQ9: 56.39 | AR9: 379 | AS9: 57.27 | AT9: 356 | AU9: 12.4 | AV9: 675 | AW9: 12.04 | AX9: 776 | AY9: 473.32 | AZ9: 286 | BA9: 435.45 | BB9: 398 | BC9: 315 | BD9: 523 | BE9: 210 | BF9: 232 | BG9: 12.33 | BH9: 614 | BI9: 8.6 | BJ9: 392 | BK9: 51.86 | BL9: 535 | BM9: 49.87 | BN9: 627 | BO9: 27.85 | BP9: 437 | BQ9: 25.68 | BR9: 626 | BS9: 10.79 | BT9: 518 | BU9: 9.73 | BV9: 396 | BW9: 11.94 | BX9: 590 | BY9: 7 | BZ9: 303 | CA9: 10.82 | CB9: 466 | CC9: 12.32 | CD9: 303 | CE9: 23.46 | CF9: 244 | CG9: 23.75 | CH9: 231 | CI9: 135 | CJ9: 335 | CK9: 135 | CL9: 335 | CM9: 6.77 | CN9: 290 | CO9: 5.37 | CP9: 216 | CQ9: 519.33 | CR9: 262 | CS9: 327.15 | CT9: 311 | CU9: 10.19 | CV9: 567 | CW9: 10.12 | CX9: 580 | CY9: 30.58 | CZ9: 287 | DA9: 30.38 | DB9: 296 | DC9: 425 | DD9: 315 | DE9: 426 | DF9: 316 | DG9: 8.48 | DH9: 385 | DI9: 8.15 | DJ9: 367 | DK9: 460.92 | DL9: 420 | DM9: 360.74 | DN9: 216 | DO9: 13.63 | DP9: 506 | DQ9: 14.99 | DR9: 731 | DS9: 44.55 | DT9: 476 | DU9: 42.21 | DV9: 596 | DW9: 10.13 | DX9: 440 | DY9: 8.87 | DZ9: 311 | EA9: 32.3 | EB9: 500 | EC9: 21.19 | ED9: 320 | EE9: 647.57 | EF9: 384 | EG9: 354.72 | EH9: 230 | EI9: 146.5 | EJ9: 457 | EK9: 142.03 | EL9: 519 | EM9: 280 | EN9: 414 | EO9: 260 | EP9: 357 | EQ9: 39.09 | ER9: 490 | ES9: 40.2 | ET9: 507 | EW9: 14083 | EX9: 13980 | EY9: 28063
A10: 3 | B10: NURMIJÄRVEN YLEISURHEILU | C10: 10836 | D10: 11116 | E10: 21952 | F10: 6366 | G10: 10.85 | H10: 151 | I10: 9.2 | J10: 343 | K10: 240.14 | L10: 174 | M10: 223.74 | N10: 234 | O10: 379 | P10: 235 | Q10: 324 | R10: 157 | S10: 17.05 | T10: 218 | U10: 15.44 | V10: 193 | W10: 32.9 | X10: 175 | Y10: 31.97 | Z10: 198 | AA10: 8.79 | AB10: 429 | AC10: 9.58 | AD10: 281 | AE10: 223.67 | AF10: 235 | AG10: 217.63 | AH10: 263 | AI10: 130 | AJ10: 299 | AK10: 115 | AL10: 205 | AM10: 22.13 | AN10: 246 | AO10: 38.16 | AP10: 476 | AQ10: 58.52 | AR10: 326 | AS10: 62.72 | AT10: 244 | AU10: 13.56 | AV10: 442 | AW10: 15.48 | AX10: 234 | AY10: 496.77 | AZ10: 236 | BA10: 439.86 | BB10: 383 | BC10: 195 | BD10: 200 | BF10: 0 | BG10: 8.03 | BH10: 360 | BI10: 12.49 | BJ10: 624 | BK10: 57.03 | BL10: 362 | BM10: 57.12 | BN10: 360 | BO10: 29.03 | BP10: 363 | BQ10: 25.9 | BR10: 603 | BS10: 9.54 | BT10: 376 | BU10: 8.75 | BV10: 300 | BW10: 10.9 | BX10: 527 | BY10: 8.46 | BZ10: 384 | CA10: 10.76 | CB10: 474 | CC10: 12.34 | CD10: 301 | CE10: 23.68 | CF10: 234 | CG10: 22.81 | CH10: 278 | CI10: 115 | CJ10: 205 | CK10: 105 | CL10: 154 | CM10: 8.18 | CN10: 368 | CO10: 6.62 | CP10: 282 | CQ10: 517.19 | CR10: 266 | CS10: 371.64 | CT10: 193 | CU10: 11.52 | CV10: 378 | CW10: 12.13 | CX10: 319 | CY10: 29.62 | CZ10: 332 | DA10: 29.42 | DB10: 342 | DC10: 400 | DD10: 270 | DE10: 429 | DF10: 322 | DG10: 7.63 | DH10: 338 | DI10: 10 | DJ10: 473 | DK10: 492.52 | DL10: 323 | DN10: 0 | DO10: 12.99 | DP10: 592 | DR10: 0 | DS10: 48.06 | DT10: 346 | DU10: 43.13 | DV10: 545 | DW10: 9.83 | DX10: 407 | DY10: 8.45 | DZ10: 274 | EA10: 33.19 | EB10: 515 | EC10: 48.15 | ED10: 760 | EE10: 682.95 | EF10: 311 | EG10: 353.52 | EH10: 233 | EI10: 175.35 | EJ10: 217 | EL10: 0 | EM10: 300 | EN10: 475 | EP10: 0 | ER10: 0 | ES10: 45.59 | ET10: 589 | EW10: 10836 | EX10: 11116 | EY10: 21952
A11: 4 | B11: JANAKKALAN JANA | C11: 10967 | D11: 8594 | E11: 19561 | F11: 8757 | G11: 10.66 | H11: 165 | I11: 10.28 | J11: 198 | K11: 266.3 | L11: 111 | M11: 261.18 | N11: 121 | O11: 383 | P11: 242 | Q11: 337 | R11: 174 | S11: 17.42 | T11: 223 | U11: 15.85 | V11: 199 | W11: 34.06 | X11: 150 | Y11: 38.23 | Z11: 89 | AA11: 9.7 | AB11: 264 | AC11: 9.7 | AD11: 264 | AE11: 207.88 | AF11: 318 | AH11: 0 | AI11: 120 | AJ11: 234 | AL11: 0 | AM11: 16.7 | AN11: 173 | AO11: 52.44 | AP11: 696 | AQ11: 62.84 | AR11: 242 | AT11: 0 | AU11: 14 | AV11: 380 | AW11: 11.92 | AX11: 814 | AY11: 467.5 | AZ11: 301 | BA11: 402.66 | BB11: 542 | BC11: 195 | BD11: 200 | BF11: 0 | BG11: 9.1 | BH11: 421 | BI11: 9.42 | BJ11: 439 | BK11: 57.28 | BL11: 356 | BM11: 51.91 | BN11: 533 | BO11: 26.79 | BP11: 519 | BQ11: 26.43 | BR11: 551 | BS11: 9.17 | BT11: 339 | BU11: 13.61 | BV11: 940 | BW11: 9.4 | BX11: 438 | BY11: 7.51 | BZ11: 331 | CA11: 11.7 | CB11: 359 | CC11: 12.79 | CD11: 267 | CE11: 25.78 | CF11: 157 | CG11: 30.48 | CH11: 69 | CI11: 115 | CJ11: 205 | CK11: 100 | CL11: 132 | CM11: 7.98 | CN11: 357 | CO11: 5.96 | CP11: 247 | CQ11: 578.17 | CR11: 170 | CS11: 422.72 | CT11: 115 | CU11: 11.98 | CV11: 332 | CX11: 0 | CY11: 32.23 | CZ11: 226 | DB11: 0 | DC11: 372 | DD11: 224 | DF11: 0 | DG11: 7.39 | DH11: 324 | DI11: 9.52 | DJ11: 445 | DL11: 0 | DM11: 480.74 | DN11: 64 | DO11: 15.51 | DP11: 330 | DQ11: 19.55 | DR11: 304 | DS11: 49.71 | DT11: 301 | DV11: 0 | DW11: 7.43 | DX11: 195 | DY11: 12.31 | DZ11: 727 | EA11: 25.91 | EB11: 396 | ED11: 0 | EE11: 681.76 | EF11: 313 | EG11: 356.02 | EH11: 227 | EI11: 164.39 | EJ11: 284 | EK11: 130.84 | EL11: 724 | EM11: 210 | EN11: 232 | EP11: 0 | EQ11: 30.15 | ER11: 358 | ES11: 40.45 | ET11: 510 | EW11: 10967 | EX11: 8594 | EY11: 19561
A12: 5 | B12: LÄNSI-UUDENMAAN URHEILIJAT | C12: 11735 | D12: 7244 | E12: 18979 | F12: 9339 | G12: 9.82 | H12: 249 | I12: 10.67 | J12: 164 | K12: 226.47 | L12: 223 | M12: 242.08 | N12: 168 | O12: 355 | P12: 199 | Q12: 390 | R12: 253 | S12: 18.12 | T12: 235 | U12: 13.17 | V12: 158 | W12: 33.53 | X12: 161 | Y12: 34.67 | Z12: 138 | AA12: 9.03 | AB12: 376 | AC12: 9.59 | AD12: 280 | AE12: 229.94 | AF12: 209 | AG12: 198.03 | AH12: 388 | AI12: 140 | AJ12: 374 | AK12: 120 | AL12: 234 | AM12: 14.61 | AN12: 147 | AO12: 34.9 | AP12: 427 | AQ12: 58.96 | AR12: 316 | AS12: 61.24 | AT12: 270 | AU12: 13.17 | AV12: 508 | AW12: 13.47 | AX12: 456 | AY12: 466.57 | AZ12: 303 | BA12: 401.54 | BB12: 548 | BD12: 0 | BE12: 300 | BF12: 475 | BG12: 7.35 | BH12: 322 | BI12: 9.71 | BJ12: 456 | BK12: 56.14 | BL12: 386 | BM12: 51.02 | BN12: 571 | BO12: 27.25 | BP12: 481 | BQ12: 24.59 | BR12: 758 | BS12: 9.35 | BT12: 357 | BU12: 9.52 | BV12: 374 | BW12: 7.19 | BX12: 313 | BY12: 9.74 | BZ12: 458 | CA12: 13.34 | CB12: 232 | CC12: 10.78 | CD12: 471 | CE12: 25.45 | CF12: 167 | CG12: 28.2 | CH12: 102 | CI12: 115 | CJ12: 205 | CK12: 100 | CL12: 132 | CN12: 0 | CO12: 4.85 | CP12: 190 | CQ12: 556.25 | CR12: 199 | CS12: 435.53 | CT12: 101 | CU12: 10.13 | CV12: 578 | CW12: 13.19 | CX12: 241 | CY12: 31.22 | CZ12: 262 | DB12: 0 | DC12: 298 | DD12: 126 | DE12: 347 | DF12: 188 | DG12: 6.12 | DH12: 255 | DJ12: 0 | DK12: 491.63 | DL12: 326 | DM12: 398.88 | DN12: 146 | DO12: 12.94 | DP12: 600 | DQ12: 14.16 | DR12: 880 | DT12: 0 | DV12: 0 | DX12: 0 | DY12: 9.97 | DZ12: 422 | EB12: 0 | ED12: 0 | EE12: 674.18 | EF12: 327 | EG12: 383.69 | EH12: 170 | EI12: 149 | EJ12: 426 | EL12: 0 | EN12: 0 | EP12: 0 | ER12: 0 | ES12: 39.62 | ET12: 498 | EW12: 11735 | EX12: 7244 | EY12: 18979
A13: 6 | B13: KARKKILAN POJAT | C13: 8263 | D13: 8623 | E13: 16886 | F13: 11432 | G13: 10.71 | H13: 161 | I13: 10.95 | J13: 144 | K13: 249.39 | L13: 148 | M13: 226.74 | N13: 222 | O13: 364 | P13: 212 | Q13: 265 | R13: 92 | S13: 11.96 | T13: 140 | U13: 8.82 | V13: 95 | W13: 34.09 | X13: 149 | Y13: 36.19 | Z13: 114 | AA13: 9.67 | AB13: 268 | AC13: 8.44 | AD13: 523 | AE13: 254.77 | AF13: 135 | AG13: 222.21 | AH13: 241 | AI13: 120 | AJ13: 234 | AK13: 130 | AL13: 299 | AM13: 17.78 | AN13: 188 | AO13: 25.66 | AP13: 294 | AR13: 0 | AS13: 57.68 | AT13: 346 | AU13: 14.2 | AV13: 355 | AW13: 14.95 | AX13: 277 | AY13: 514.29 | AZ13: 205 | BA13: 509.57 | BB13: 213 | BC13: 225 | BD13: 267 | BE13: 180 | BF13: 170 | BG13: 7.34 | BH13: 321 | BI13: 8.77 | BJ13: 402 | BK13: 59.5 | BL13: 304 | BM13: 58.06 | BN13: 336 | BO13: 30.46 | BP13: 292 | BR13: 0 | BS13: 8.43 | BT13: 272 | BV13: 0 | BW13: 9.13 | BX13: 423 | BY13: 9.11 | BZ13: 421 | CA13: 13.98 | CB13: 198 | CD13: 0 | CE13: 28.41 | CF13: 98 | CG13: 23.77 | CH13: 230 | CI13: 125 | CJ13: 265 | CK13: 120 | CL13: 234 | CM13: 6.1 | CN13: 254 | CO13: 6.63 | CP13: 283 | CQ13: 542.05 | CR13: 220 | CS13: 340.86 | CT13: 267 | CU13: 11.91 | CV13: 339 | CX13: 0 | CY13: 34.37 | CZ13: 169 | DA13: 29.63 | DB13: 331 | DC13: 355 | DD13: 199 | DE13: 415 | DF13: 296 | DG13: 6.56 | DH13: 279 | DI13: 8.35 | DJ13: 378 | DK13: 516.91 | DL13: 267 | DM13: 443.49 | DN13: 93 | DO13: 21.22 | DP13: 113 | DR13: 0 | DS13: 47.69 | DT13: 358 | DU13: 44.09 | DV13: 497 | DW13: 9.44 | DX13: 366 | DY13: 9.56 | DZ13: 378 | EA13: 16.21 | EB13: 240 | ED13: 0 | EE13: 663.02 | EF13: 350 | EG13: 380.39 | EH13: 176 | EI13: 163.16 | EJ13: 293 | EK13: 138.54 | EL13: 574 | EM13: 220 | EN13: 255 | EP13: 0 | EQ13: 18.69 | ER13: 200 | ES13: 34.6 | ET13: 423 | EW13: 8263 | EX13: 8623 | EY13: 16886
A14: 7 | B14: VIHDIN VIESTI | C14: 7633 | D14: 9083 | E14: 16716 | F14: 11602 | G14: 9.74 | H14: 259 | I14: 9.92 | J14: 236 | K14: 226.4 | L14: 223 | N14: 0 | O14: 340 | P14: 178 | Q14: 352 | R14: 195 | S14: 15.24 | T14: 189 | U14: 14.9 | V14: 184 | W14: 32.05 | X14: 196 | Y14: 31.9 | Z14: 200 | AA14: 9.9 | AB14: 239 | AD14: 0 | AE14: 252.18 | AF14: 141 | AG14: 195.39 | AH14: 410 | AI14: 120 | AJ14: 234 | AL14: 0 | AM14: 14.7 | AN14: 148 | AP14: 0 | AQ14: 52.58 | AR14: 505 | AT14: 0 | AU14: 14.51 | AV14: 320 | AW14: 11.79 | AX14: 857 | AZ14: 0 | BA14: 442.53 | BB14: 374 | BD14: 0 | BE14: 240 | BF14: 304 | BG14: 6.05 | BH14: 252 | BI14: 7.93 | BJ14: 354 | BK14: 61.06 | BL14: 273 | BM14: 49.92 | BN14: 624 | BO14: 28.46 | BP14: 396 | BR14: 0 | BS14: 9.2 | BT14: 342 | BV14: 0 | BX14: 0 | BZ14: 0 | CA14: 11.02 | CB14: 438 | CC14: 12.54 | CD14: 285 | CE14: 23.33 | CF14: 251 | CG14: 24.66 | CH14: 194 | CI14: 125 | CJ14: 265 | CL14: 0 | CM14: 7.52 | CN14: 331 | CO14: 4.29 | CP14: 162 | CQ14: 495.06 | CR14: 317 | CS14: 412.11 | CT14: 128 | CU14: 11.97 | CV14: 333 | CX14: 0 | CY14: 35.4 | CZ14: 147 | DA14: 32.2 | DB14: 227 | DC14: 331 | DD14: 166 | DF14: 0 | DG14: 6.17 | DH14: 258 | DI14: 6.51 | DJ14: 276 | DK14: 530.28 | DL14: 241 | DM14: 396.88 | DN14: 149 | DO14: 15.46 | DP14: 333 | DQ14: 16.09 | DR14: 579 | DS14: 47.04 | DT14: 379 | DU14: 37.24 | DV14: 1001 | DW14: 8.83 | DX14: 307 | DY14: 10.65 | DZ14: 500 | EA14: 17.32 | EB14: 258 | EC14: 30.76 | ED14: 475 | EE14: 668.69 | EF14: 338 | EG14: 360.76 | EH14: 216 | EJ14: 0 | EK14: 141.35 | EL14: 529 | EN14: 0 | EP14: 0 | ER14: 0 | ET14: 0 | EW14: 7633 | EX14: 9083 | EY14: 16716
A15: 8 | B15: RIIHIMÄEN KISKO | C15: 5653 | D15: 5276 | E15: 10929 | F15: 17389 | H15: 0 | I15: 11.96 | J15: 91 | K15: 249.05 | L15: 149 | M15: 228.24 | N15: 216 | P15: 0 | Q15: 371 | R15: 223 | T15: 0 | U15: 14.43 | V15: 177 | X15: 0 | Y15: 35 | Z15: 133 | AA15: 8.82 | AB15: 422 | AC15: 9.47 | AD15: 298 | AE15: 211.6 | AF15: 296 | AH15: 0 | AI15: 135 | AJ15: 335 | AL15: 0 | AM15: 31.18 | AN15: 373 | AP15: 0 | AQ15: 57.37 | AR15: 353 | AT15: 0 | AU15: 13.71 | AV15: 419 | AX15: 0 | AY15: 487.38 | AZ15: 255 | BA15: 430.32 | BB15: 417 | BC15: 210 | BD15: 232 | BF15: 0 | BG15: 9.6 | BH15: 450 | BJ15: 0 | BL15: 0 | BN15: 0 | BO15: 28.4 | BP15: 400 | BR15: 0 | BS15: 9.9 | BT15: 414 | BV15: 0 | BX15: 0 | BZ15: 0 | CB15: 0 | CC15: 10.39 | CD15: 532 | CE15: 23.39 | CF15: 248 | CG15: 25.9 | CH15: 154 | CI15: 115 | CJ15: 205 | CK15: 120 | CL15: 234 | CM15: 5.48 | CN15: 222 | CO15: 6.52 | CP15: 277 | CQ15: 547.95 | CR15: 211 | CS15: 404.4 | CT15: 138 | CV15: 0 | CX15: 0 | CY15: 29.8 | CZ15: 323 | DB15: 0 | DC15: 384 | DD15: 243 | DE15: 396 | DF15: 263 | DG15: 9.61 | DH15: 451 | DI15: 6.79 | DJ15: 291 | DK15: 494.2 | DL15: 319 | DM15: 380.95 | DN15: 175 | DP15: 0 | DR15: 0 | DS15: 53.16 | DT15: 226 | DV15: 0 | DX15: 0 | DZ15: 0 | EB15: 0 | ED15: 0 | EF15: 0 | EH15: 0 | EJ15: 0 | EK15: 142.05 | EL15: 518 | EN15: 0 | EP15: 0 | ER15: 0 | ES15: 22.15 | ET15: 246 | EW15: 5653 | EX15: 5276 | EY15: 10929
A16: 9 | C16: 0 | D16: 0 | E16: 0 | F16: 0 | H16: 0 | J16: 0 | L16: 0 | N16: 0 | P16: 0 | R16: 0 | T16: 0 | V16: 0 | X16: 0 | Z16: 0 | AB16: 0 | AD16: 0 | AF16: 0 | AH16: 0 | AJ16: 0 | AL16: 0 | AN16: 0 | AP16: 0 | AR16: 0 | AT16: 0 | AV16: 0 | AX16: 0 | AZ16: 0 | BB16: 0 | BD16: 0 | BF16: 0 | BH16: 0 | BJ16: 0 | BL16: 0 | BN16: 0 | BP16: 0 | BR16: 0 | BT16: 0 | BV16: 0 | BX16: 0 | BZ16: 0 | CB16: 0 | CD16: 0 | CF16: 0 | CH16: 0 | CJ16: 0 | CL16: 0 | CN16: 0 | CP16: 0 | CR16: 0 | CT16: 0 | CV16: 0 | CX16: 0 | CZ16: 0 | DB16: 0 | DD16: 0 | DF16: 0 | DH16: 0 | DJ16: 0 | DL16: 0 | DN16: 0 | DP16: 0 | DR16: 0 | DT16: 0 | DV16: 0 | DX16: 0 | DZ16: 0 | EB16: 0 | ED16: 0 | EF16: 0 | EH16: 0 | EJ16: 0 | EL16: 0 | EN16: 0 | EP16: 0 | ER16: 0 | ET16: 0 | EW16: 0 | EX16: 0 | EY16: 0
A17: 10 | C17: 0 | D17: 0 | E17: 0 | F17: 0 | H17: 0 | J17: 0 | L17: 0 | N17: 0 | P17: 0 | R17: 0 | T17: 0 | V17: 0 | X17: 0 | Z17: 0 | AB17: 0 | AD17: 0 | AF17: 0 | AH17: 0 | AJ17: 0 | AL17: 0 | AN17: 0 | AP17: 0 | AR17: 0 | AT17: 0 | AV17: 0 | AX17: 0 | AZ17: 0 | BB17: 0 | BD17: 0 | BF17: 0 | BH17: 0 | BJ17: 0 | BL17: 0 | BN17: 0 | BP17: 0 | BR17: 0 | BT17: 0 | BV17: 0 | BX17: 0 | BZ17: 0 | CB17: 0 | CD17: 0 | CF17: 0 | CH17: 0 | CJ17: 0 | CL17: 0 | CN17: 0 | CP17: 0 | CR17: 0 | CT17: 0 | CV17: 0 | CX17: 0 | CZ17: 0 | DB17: 0 | DD17: 0 | DF17: 0 | DH17: 0 | DJ17: 0 | DL17: 0 | DN17: 0 | DP17: 0 | DR17: 0 | DT17: 0 | DV17: 0 | DX17: 0 | DZ17: 0 | EB17: 0 | ED17: 0 | EF17: 0 | EH17: 0 | EJ17: 0 | EL17: 0 | EN17: 0 | EP17: 0 | ER17: 0 | ET17: 0 | EW17: 0 | EX17: 0 | EY17: 0
A18: 11 | C18: 0 | D18: 0 | E18: 0 | F18: 0 | H18: 0 | J18: 0 | L18: 0 | N18: 0 | P18: 0 | R18: 0 | T18: 0 | V18: 0 | X18: 0 | Z18: 0 | AB18: 0 | AD18: 0 | AF18: 0 | AH18: 0 | AJ18: 0 | AL18: 0 | AN18: 0 | AP18: 0 | AR18: 0 | AT18: 0 | AV18: 0 | AX18: 0 | AZ18: 0 | BB18: 0 | BD18: 0 | BF18: 0 | BH18: 0 | BJ18: 0 | BL18: 0 | BN18: 0 | BP18: 0 | BR18: 0 | BT18: 0 | BV18: 0 | BX18: 0 | BZ18: 0 | CB18: 0 | CD18: 0 | CF18: 0 | CH18: 0 | CJ18: 0 | CL18: 0 | CN18: 0 | CP18: 0 | CR18: 0 | CT18: 0 | CV18: 0 | CX18: 0 | CZ18: 0 | DB18: 0 | DD18: 0 | DF18: 0 | DH18: 0 | DJ18: 0 | DL18: 0 | DN18: 0 | DP18: 0 | DR18: 0 | DT18: 0 | DV18: 0 | DX18: 0 | DZ18: 0 | EB18: 0 | ED18: 0 | EF18: 0 | EH18: 0 | EJ18: 0 | EL18: 0 | EN18: 0 | EP18: 0 | ER18: 0 | ET18: 0 | EW18: 0 | EX18: 0 | EY18: 0
A19: 12 | C19: 0 | D19: 0 | E19: 0 | F19: 0 | H19: 0 | J19: 0 | L19: 0 | N19: 0 | P19: 0 | R19: 0 | T19: 0 | V19: 0 | X19: 0 | Z19: 0 | AB19: 0 | AD19: 0 | AF19: 0 | AH19: 0 | AJ19: 0 | AL19: 0 | AN19: 0 | AP19: 0 | AR19: 0 | AT19: 0 | AV19: 0 | AX19: 0 | AZ19: 0 | BB19: 0 | BD19: 0 | BF19: 0 | BH19: 0 | BJ19: 0 | BL19: 0 | BN19: 0 | BP19: 0 | BR19: 0 | BT19: 0 | BV19: 0 | BX19: 0 | BZ19: 0 | CB19: 0 | CD19: 0 | CF19: 0 | CH19: 0 | CJ19: 0 | CL19: 0 | CN19: 0 | CP19: 0 | CR19: 0 | CT19: 0 | CV19: 0 | CX19: 0 | CZ19: 0 | DB19: 0 | DD19: 0 | DF19: 0 | DH19: 0 | DJ19: 0 | DL19: 0 | DN19: 0 | DP19: 0 | DR19: 0 | DT19: 0 | DV19: 0 | DX19: 0 | DZ19: 0 | EB19: 0 | ED19: 0 | EF19: 0 | EH19: 0 | EJ19: 0 | EL19: 0 | EN19: 0 | EP19: 0 | ER19: 0 | ET19: 0 | EW19: 0 | EX19: 0 | EY19: 0
A20: 13 | C20: 0 | D20: 0 | E20: 0 | F20: 0 | H20: 0 | J20: 0 | L20: 0 | N20: 0 | P20: 0 | R20: 0 | T20: 0 | V20: 0 | X20: 0 | Z20: 0 | AB20: 0 | AD20: 0 | AF20: 0 | AH20: 0 | AJ20: 0 | AL20: 0 | AN20: 0 | AP20: 0 | AR20: 0 | AT20: 0 | AV20: 0 | AX20: 0 | AZ20: 0 | BB20: 0 | BD20: 0 | BF20: 0 | BH20: 0 | BJ20: 0 | BL20: 0 | BN20: 0 | BP20: 0 | BR20: 0 | BT20: 0 | BV20: 0 | BX20: 0 | BZ20: 0 | CB20: 0 | CD20: 0 | CF20: 0 | CH20: 0 | CJ20: 0 | CL20: 0 | CN20: 0 | CP20: 0 | CR20: 0 | CT20: 0 | CV20: 0 | CX20: 0 | CZ20: 0 | DB20: 0 | DD20: 0 | DF20: 0 | DH20: 0 | DJ20: 0 | DL20: 0 | DN20: 0 | DP20: 0 | DR20: 0 | DT20: 0 | DV20: 0 | DX20: 0 | DZ20: 0 | EB20: 0 | ED20: 0 | EF20: 0 | EH20: 0 | EJ20: 0 | EL20: 0 | EN20: 0 | EP20: 0 | ER20: 0 | ET20: 0 | EW20: 0 | EX20: 0 | EY20: 0
A21: 14 | C21: 0 | D21: 0 | E21: 0 | F21: 0 | H21: 0 | J21: 0 | L21: 0 | N21: 0 | P21: 0 | R21: 0 | T21: 0 | V21: 0 | X21: 0 | Z21: 0 | AB21: 0 | AD21: 0 | AF21: 0 | AH21: 0 | AJ21: 0 | AL21: 0 | AN21: 0 | AP21: 0 | AR21: 0 | AT21: 0 | AV21: 0 | AX21: 0 | AZ21: 0 | BB21: 0 | BD21: 0 | BF21: 0 | BH21: 0 | BJ21: 0 | BL21: 0 | BN21: 0 | BP21: 0 | BR21: 0 | BT21: 0 | BV21: 0 | BX21: 0 | BZ21: 0 | CB21: 0 | CD21: 0 | CF21: 0 | CH21: 0 | CJ21: 0 | CL21: 0 | CN21: 0 | CP21: 0 | CR21: 0 | CT21: 0 | CV21: 0 | CX21: 0 | CZ21: 0 | DB21: 0 | DD21: 0 | DF21: 0 | DH21: 0 | DJ21: 0 | DL21: 0 | DN21: 0 | DP21: 0 | DR21: 0 | DT21: 0 | DV21: 0 | DX21: 0 | DZ21: 0 | EB21: 0 | ED21: 0 | EF21: 0 | EH21: 0 | EJ21: 0 | EL21: 0 | EN21: 0 | EP21: 0 | ER21: 0 | ET21: 0 | EW21: 0 | EX21: 0 | EY21: 0
A22: 15 | C22: 0 | D22: 0 | E22: 0 | F22: 0 | H22: 0 | J22: 0 | L22: 0 | N22: 0 | P22: 0 | R22: 0 | T22: 0 | V22: 0 | X22: 0 | Z22: 0 | AB22: 0 | AD22: 0 | AF22: 0 | AH22: 0 | AJ22: 0 | AL22: 0 | AN22: 0 | AP22: 0 | AR22: 0 | AT22: 0 | AV22: 0 | AX22: 0 | AZ22: 0 | BB22: 0 | BD22: 0 | BF22: 0 | BH22: 0 | BJ22: 0 | BL22: 0 | BN22: 0 | BP22: 0 | BR22: 0 | BT22: 0 | BV22: 0 | BX22: 0 | BZ22: 0 | CB22: 0 | CD22: 0 | CF22: 0 | CH22: 0 | CJ22: 0 | CL22: 0 | CN22: 0 | CP22: 0 | CR22: 0 | CT22: 0 | CV22: 0 | CX22: 0 | CZ22: 0 | DB22: 0 | DD22: 0 | DF22: 0 | DH22: 0 | DJ22: 0 | DL22: 0 | DN22: 0 | DP22: 0 | DR22: 0 | DT22: 0 | DV22: 0 | DX22: 0 | DZ22: 0 | EB22: 0 | ED22: 0 | EF22: 0 | EH22: 0 | EJ22: 0 | EL22: 0 | EN22: 0 | EP22: 0 | ER22: 0 | ET22: 0 | EW22: 0 | EX22: 0 | EY22: 0
A23: 16 | C23: 0 | D23: 0 | E23: 0 | F23: 0 | H23: 0 | J23: 0 | L23: 0 | N23: 0 | P23: 0 | R23: 0 | T23: 0 | V23: 0 | X23: 0 | Z23: 0 | AB23: 0 | AD23: 0 | AF23: 0 | AH23: 0 | AJ23: 0 | AL23: 0 | AN23: 0 | AP23: 0 | AR23: 0 | AT23: 0 | AV23: 0 | AX23: 0 | AZ23: 0 | BB23: 0 | BD23: 0 | BF23: 0 | BH23: 0 | BJ23: 0 | BL23: 0 | BN23: 0 | BP23: 0 | BR23: 0 | BT23: 0 | BV23: 0 | BX23: 0 | BZ23: 0 | CB23: 0 | CD23: 0 | CF23: 0 | CH23: 0 | CJ23: 0 | CL23: 0 | CN23: 0 | CP23: 0 | CR23: 0 | CT23: 0 | CV23: 0 | CX23: 0 | CZ23: 0 | DB23: 0 | DD23: 0 | DF23: 0 | DH23: 0 | DJ23: 0 | DL23: 0 | DN23: 0 | DP23: 0 | DR23: 0 | DT23: 0 | DV23: 0 | DX23: 0 | DZ23: 0 | EB23: 0 | ED23: 0 | EF23: 0 | EH23: 0 | EJ23: 0 | EL23: 0 | EN23: 0 | EP23: 0 | ER23: 0 | ET23: 0 | EW23: 0 | EX23: 0 | EY23: 0
A24: 17 | C24: 0 | D24: 0 | E24: 0 | F24: 0 | H24: 0 | J24: 0 | L24: 0 | N24: 0 | P24: 0 | R24: 0 | T24: 0 | V24: 0 | X24: 0 | Z24: 0 | AB24: 0 | AD24: 0 | AF24: 0 | AH24: 0 | AJ24: 0 | AL24: 0 | AN24: 0 | AP24: 0 | AR24: 0 | AT24: 0 | AV24: 0 | AX24: 0 | AZ24: 0 | BB24: 0 | BD24: 0 | BF24: 0 | BH24: 0 | BJ24: 0 | BL24: 0 | BN24: 0 | BP24: 0 | BR24: 0 | BT24: 0 | BV24: 0 | BX24: 0 | BZ24: 0 | CB24: 0 | CD24: 0 | CF24: 0 | CH24: 0 | CJ24: 0 | CL24: 0 | CN24: 0 | CP24: 0 | CR24: 0 | CT24: 0 | CV24: 0 | CX24: 0 | CZ24: 0 | DB24: 0 | DD24: 0 | DF24: 0 | DH24: 0 | DJ24: 0 | DL24: 0 | DN24: 0 | DP24: 0 | DR24: 0 | DT24: 0 | DV24: 0 | DX24: 0 | DZ24: 0 | EB24: 0 | ED24: 0 | EF24: 0 | EH24: 0 | EJ24: 0 | EL24: 0 | EN24: 0 | EP24: 0 | ER24: 0 | ET24: 0 | EW24: 0 | EX24: 0 | EY24: 0
A25: 18 | C25: 0 | D25: 0 | E25: 0 | F25: 0 | H25: 0 | J25: 0 | L25: 0 | N25: 0 | P25: 0 | R25: 0 | T25: 0 | V25: 0 | X25: 0 | Z25: 0 | AB25: 0 | AD25: 0 | AF25: 0 | AH25: 0 | AJ25: 0 | AL25: 0 | AN25: 0 | AP25: 0 | AR25: 0 | AT25: 0 | AV25: 0 | AX25: 0 | AZ25: 0 | BB25: 0 | BD25: 0 | BF25: 0 | BH25: 0 | BJ25: 0 | BL25: 0 | BN25: 0 | BP25: 0 | BR25: 0 | BT25: 0 | BV25: 0 | BX25: 0 | BZ25: 0 | CB25: 0 | CD25: 0 | CF25: 0 | CH25: 0 | CJ25: 0 | CL25: 0 | CN25: 0 | CP25: 0 | CR25: 0 | CT25: 0 | CV25: 0 | CX25: 0 | CZ25: 0 | DB25: 0 | DD25: 0 | DF25: 0 | DH25: 0 | DJ25: 0 | DL25: 0 | DN25: 0 | DP25: 0 | DR25: 0 | DT25: 0 | DV25: 0 | DX25: 0 | DZ25: 0 | EB25: 0 | ED25: 0 | EF25: 0 | EH25: 0 | EJ25: 0 | EL25: 0 | EN25: 0 | EP25: 0 | ER25: 0 | ET25: 0 | EW25: 0 | EX25: 0 | EY25: 0
A26: 19 | C26: 0 | D26: 0 | E26: 0 | F26: 0 | H26: 0 | J26: 0 | L26: 0 | N26: 0 | P26: 0 | R26: 0 | T26: 0 | V26: 0 | X26: 0 | Z26: 0 | AB26: 0 | AD26: 0 | AF26: 0 | AH26: 0 | AJ26: 0 | AL26: 0 | AN26: 0 | AP26: 0 | AR26: 0 | AT26: 0 | AV26: 0 | AX26: 0 | AZ26: 0 | BB26: 0 | BD26: 0 | BF26: 0 | BH26: 0 | BJ26: 0 | BL26: 0 | BN26: 0 | BP26: 0 | BR26: 0 | BT26: 0 | BV26: 0 | BX26: 0 | BZ26: 0 | CB26: 0 | CD26: 0 | CF26: 0 | CH26: 0 | CJ26: 0 | CL26: 0 | CN26: 0 | CP26: 0 | CR26: 0 | CT26: 0 | CV26: 0 | CX26: 0 | CZ26: 0 | DB26: 0 | DD26: 0 | DF26: 0 | DH26: 0 | DJ26: 0 | DL26: 0 | DN26: 0 | DP26: 0 | DR26: 0 | DT26: 0 | DV26: 0 | DX26: 0 | DZ26: 0 | EB26: 0 | ED26: 0 | EF26: 0 | EH26: 0 | EJ26: 0 | EL26: 0 | EN26: 0 | EP26: 0 | ER26: 0 | ET26: 0 | EW26: 0 | EX26: 0 | EY26: 0
A27: 20 | C27: 0 | D27: 0 | E27: 0 | F27: 0 | H27: 0 | J27: 0 | L27: 0 | N27: 0 | P27: 0 | R27: 0 | T27: 0 | V27: 0 | X27: 0 | Z27: 0 | AB27: 0 | AD27: 0 | AF27: 0 | AH27: 0 | AJ27: 0 | AL27: 0 | AN27: 0 | AP27: 0 | AR27: 0 | AT27: 0 | AV27: 0 | AX27: 0 | AZ27: 0 | BB27: 0 | BD27: 0 | BF27: 0 | BH27: 0 | BJ27: 0 | BL27: 0 | BN27: 0 | BP27: 0 | BR27: 0 | BT27: 0 | BV27: 0 | BX27: 0 | BZ27: 0 | CB27: 0 | CD27: 0 | CF27: 0 | CH27: 0 | CJ27: 0 | CL27: 0 | CN27: 0 | CP27: 0 | CR27: 0 | CT27: 0 | CV27: 0 | CX27: 0 | CZ27: 0 | DB27: 0 | DD27: 0 | DF27: 0 | DH27: 0 | DJ27: 0 | DL27: 0 | DN27: 0 | DP27: 0 | DR27: 0 | DT27: 0 | DV27: 0 | DX27: 0 | DZ27: 0 | EB27: 0 | ED27: 0 | EF27: 0 | EH27: 0 | EJ27: 0 | EL27: 0 | EN27: 0 | EP27: 0 | ER27: 0 | ET27: 0 | EW27: 0 | EX27: 0 | EY27: 0
A28: 21 | C28: 0 | D28: 0 | E28: 0 | F28: 0 | H28: 0 | J28: 0 | L28: 0 | N28: 0 | P28: 0 | R28: 0 | T28: 0 | V28: 0 | X28: 0 | Z28: 0 | AB28: 0 | AD28: 0 | AF28: 0 | AH28: 0 | AJ28: 0 | AL28: 0 | AN28: 0 | AP28: 0 | AR28: 0 | AT28: 0 | AV28: 0 | AX28: 0 | AZ28: 0 | BB28: 0 | BD28: 0 | BF28: 0 | BH28: 0 | BJ28: 0 | BL28: 0 | BN28: 0 | BP28: 0 | BR28: 0 | BT28: 0 | BV28: 0 | BX28: 0 | BZ28: 0 | CB28: 0 | CD28: 0 | CF28: 0 | CH28: 0 | CJ28: 0 | CL28: 0 | CN28: 0 | CP28: 0 | CR28: 0 | CT28: 0 | CV28: 0 | CX28: 0 | CZ28: 0 | DB28: 0 | DD28: 0 | DF28: 0 | DH28: 0 | DJ28: 0 | DL28: 0 | DN28: 0 | DP28: 0 | DR28: 0 | DT28: 0 | DV28: 0 | DX28: 0 | DZ28: 0 | EB28: 0 | ED28: 0 | EF28: 0 | EH28: 0 | EJ28: 0 | EL28: 0 | EN28: 0 | EP28: 0 | ER28: 0 | ET28: 0 | EW28: 0 | EX28: 0 | EY28: 0
A29: 22 | C29: 0 | D29: 0 | E29: 0 | F29: 0 | H29: 0 | J29: 0 | L29: 0 | N29: 0 | P29: 0 | R29: 0 | T29: 0 | V29: 0 | X29: 0 | Z29: 0 | AB29: 0 | AD29: 0 | AF29: 0 | AH29: 0 | AJ29: 0 | AL29: 0 | AN29: 0 | AP29: 0 | AR29: 0 | AT29: 0 | AV29: 0 | AX29: 0 | AZ29: 0 | BB29: 0 | BD29: 0 | BF29: 0 | BH29: 0 | BJ29: 0 | BL29: 0 | BN29: 0 | BP29: 0 | BR29: 0 | BT29: 0 | BV29: 0 | BX29: 0 | BZ29: 0 | CB29: 0 | CD29: 0 | CF29: 0 | CH29: 0 | CJ29: 0 | CL29: 0 | CN29: 0 | CP29: 0 | CR29: 0 | CT29: 0 | CV29: 0 | CX29: 0 | CZ29: 0 | DB29: 0 | DD29: 0 | DF29: 0 | DH29: 0 | DJ29: 0 | DL29: 0 | DN29: 0 | DP29: 0 | DR29: 0 | DT29: 0 | DV29: 0 | DX29: 0 | DZ29: 0 | EB29: 0 | ED29: 0 | EF29: 0 | EH29: 0 | EJ29: 0 | EL29: 0 | EN29: 0 | EP29: 0 | ER29: 0 | ET29: 0 | EW29: 0 | EX29: 0 | EY29: 0
A30: 23 | C30: 0 | D30: 0 | E30: 0 | F30: 0 | H30: 0 | J30: 0 | L30: 0 | N30: 0 | P30: 0 | R30: 0 | T30: 0 | V30: 0 | X30: 0 | Z30: 0 | AB30: 0 | AD30: 0 | AF30: 0 | AH30: 0 | AJ30: 0 | AL30: 0 | AN30: 0 | AP30: 0 | AR30: 0 | AT30: 0 | AV30: 0 | AX30: 0 | AZ30: 0 | BB30: 0 | BD30: 0 | BF30: 0 | BH30: 0 | BJ30: 0 | BL30: 0 | BN30: 0 | BP30: 0 | BR30: 0 | BT30: 0 | BV30: 0 | BX30: 0 | BZ30: 0 | CB30: 0 | CD30: 0 | CF30: 0 | CH30: 0 | CJ30: 0 | CL30: 0 | CN30: 0 | CP30: 0 | CR30: 0 | CT30: 0 | CV30: 0 | CX30: 0 | CZ30: 0 | DB30: 0 | DD30: 0 | DF30: 0 | DH30: 0 | DJ30: 0 | DL30: 0 | DN30: 0 | DP30: 0 | DR30: 0 | DT30: 0 | DV30: 0 | DX30: 0 | DZ30: 0 | EB30: 0 | ED30: 0 | EF30: 0 | EH30: 0 | EJ30: 0 | EL30: 0 | EN30: 0 | EP30: 0 | ER30: 0 | ET30: 0 | EW30: 0 | EX30: 0 | EY30: 0
A31: 24 | C31: 0 | D31: 0 | E31: 0 | F31: 0 | H31: 0 | J31: 0 | L31: 0 | N31: 0 | P31: 0 | R31: 0 | T31: 0 | V31: 0 | X31: 0 | Z31: 0 | AB31: 0 | AD31: 0 | AF31: 0 | AH31: 0 | AJ31: 0 | AL31: 0 | AN31: 0 | AP31: 0 | AR31: 0 | AT31: 0 | AV31: 0 | AX31: 0 | AZ31: 0 | BB31: 0 | BD31: 0 | BF31: 0 | BH31: 0 | BJ31: 0 | BL31: 0 | BN31: 0 | BP31: 0 | BR31: 0 | BT31: 0 | BV31: 0 | BX31: 0 | BZ31: 0 | CB31: 0 | CD31: 0 | CF31: 0 | CH31: 0 | CJ31: 0 | CL31: 0 | CN31: 0 | CP31: 0 | CR31: 0 | CT31: 0 | CV31: 0 | CX31: 0 | CZ31: 0 | DB31: 0 | DD31: 0 | DF31: 0 | DH31: 0 | DJ31: 0 | DL31: 0 | DN31: 0 | DP31: 0 | DR31: 0 | DT31: 0 | DV31: 0 | DX31: 0 | DZ31: 0 | EB31: 0 | ED31: 0 | EF31: 0 | EH31: 0 | EJ31: 0 | EL31: 0 | EN31: 0 | EP31: 0 | ER31: 0 | ET31: 0 | EW31: 0 | EX31: 0 | EY31: 0
A32: 25 | C32: 0 | D32: 0 | E32: 0 | F32: 0 | H32: 0 | J32: 0 | L32: 0 | N32: 0 | P32: 0 | R32: 0 | T32: 0 | V32: 0 | X32: 0 | Z32: 0 | AB32: 0 | AD32: 0 | AF32: 0 | AH32: 0 | AJ32: 0 | AL32: 0 | AN32: 0 | AP32: 0 | AR32: 0 | AT32: 0 | AV32: 0 | AX32: 0 | AZ32: 0 | BB32: 0 | BD32: 0 | BF32: 0 | BH32: 0 | BJ32: 0 | BL32: 0 | BN32: 0 | BP32: 0 | BR32: 0 | BT32: 0 | BV32: 0 | BX32: 0 | BZ32: 0 | CB32: 0 | CD32: 0 | CF32: 0 | CH32: 0 | CJ32: 0 | CL32: 0 | CN32: 0 | CP32: 0 | CR32: 0 | CT32: 0 | CV32: 0 | CX32: 0 | CZ32: 0 | DB32: 0 | DD32: 0 | DF32: 0 | DH32: 0 | DJ32: 0 | DL32: 0 | DN32: 0 | DP32: 0 | DR32: 0 | DT32: 0 | DV32: 0 | DX32: 0 | DZ32: 0 | EB32: 0 | ED32: 0 | EF32: 0 | EH32: 0 | EJ32: 0 | EL32: 0 | EN32: 0 | EP32: 0 | ER32: 0 | ET32: 0 | EW32: 0 | EX32: 0 | EY32: 0
A33: 26 | C33: 0 | D33: 0 | E33: 0 | F33: 0 | H33: 0 | J33: 0 | L33: 0 | N33: 0 | P33: 0 | R33: 0 | T33: 0 | V33: 0 | X33: 0 | Z33: 0 | AB33: 0 | AD33: 0 | AF33: 0 | AH33: 0 | AJ33: 0 | AL33: 0 | AN33: 0 | AP33: 0 | AR33: 0 | AT33: 0 | AV33: 0 | AX33: 0 | AZ33: 0 | BB33: 0 | BD33: 0 | BF33: 0 | BH33: 0 | BJ33: 0 | BL33: 0 | BN33: 0 | BP33: 0 | BR33: 0 | BT33: 0 | BV33: 0 | BX33: 0 | BZ33: 0 | CB33: 0 | CD33: 0 | CF33: 0 | CH33: 0 | CJ33: 0 | CL33: 0 | CN33: 0 | CP33: 0 | CR33: 0 | CT33: 0 | CV33: 0 | CX33: 0 | CZ33: 0 | DB33: 0 | DD33: 0 | DF33: 0 | DH33: 0 | DJ33: 0 | DL33: 0 | DN33: 0 | DP33: 0 | DR33: 0 | DT33: 0 | DV33: 0 | DX33: 0 | DZ33: 0 | EB33: 0 | ED33: 0 | EF33: 0 | EH33: 0 | EJ33: 0 | EL33: 0 | EN33: 0 | EP33: 0 | ER33: 0 | ET33: 0 | EW33: 0 | EX33: 0 | EY33: 0
A34: 27 | C34: 0 | D34: 0 | E34: 0 | F34: 0 | H34: 0 | J34: 0 | L34: 0 | N34: 0 | P34: 0 | R34: 0 | T34: 0 | V34: 0 | X34: 0 | Z34: 0 | AB34: 0 | AD34: 0 | AF34: 0 | AH34: 0 | AJ34: 0 | AL34: 0 | AN34: 0 | AP34: 0 | AR34: 0 | AT34: 0 | AV34: 0 | AX34: 0 | AZ34: 0 | BB34: 0 | BD34: 0 | BF34: 0 | BH34: 0 | BJ34: 0 | BL34: 0 | BN34: 0 | BP34: 0 | BR34: 0 | BT34: 0 | BV34: 0 | BX34: 0 | BZ34: 0 | CB34: 0 | CD34: 0 | CF34: 0 | CH34: 0 | CJ34: 0 | CL34: 0 | CN34: 0 | CP34: 0 | CR34: 0 | CT34: 0 | CV34: 0 | CX34: 0 | CZ34: 0 | DB34: 0 | DD34: 0 | DF34: 0 | DH34: 0 | DJ34: 0 | DL34: 0 | DN34: 0 | DP34: 0 | DR34: 0 | DT34: 0 | DV34: 0 | DX34: 0 | DZ34: 0 | EB34: 0 | ED34: 0 | EF34: 0 | EH34: 0 | EJ34: 0 | EL34: 0 | EN34: 0 | EP34: 0 | ER34: 0 | ET34: 0 | EW34: 0 | EX34: 0 | EY34: 0
A35: 28 | C35: 0 | D35: 0 | E35: 0 | F35: 0 | H35: 0 | J35: 0 | L35: 0 | N35: 0 | P35: 0 | R35: 0 | T35: 0 | V35: 0 | X35: 0 | Z35: 0 | AB35: 0 | AD35: 0 | AF35: 0 | AH35: 0 | AJ35: 0 | AL35: 0 | AN35: 0 | AP35: 0 | AR35: 0 | AT35: 0 | AV35: 0 | AX35: 0 | AZ35: 0 | BB35: 0 | BD35: 0 | BF35: 0 | BH35: 0 | BJ35: 0 | BL35: 0 | BN35: 0 | BP35: 0 | BR35: 0 | BT35: 0 | BV35: 0 | BX35: 0 | BZ35: 0 | CB35: 0 | CD35: 0 | CF35: 0 | CH35: 0 | CJ35: 0 | CL35: 0 | CN35: 0 | CP35: 0 | CR35: 0 | CT35: 0 | CV35: 0 | CX35: 0 | CZ35: 0 | DB35: 0 | DD35: 0 | DF35: 0 | DH35: 0 | DJ35: 0 | DL35: 0 | DN35: 0 | DP35: 0 | DR35: 0 | DT35: 0 | DV35: 0 | DX35: 0 | DZ35: 0 | EB35: 0 | ED35: 0 | EF35: 0 | EH35: 0 | EJ35: 0 | EL35: 0 | EN35: 0 | EP35: 0 | ER35: 0 | ET35: 0 | EW35: 0 | EX35: 0 | EY35: 0
A36: 29 | C36: 0 | D36: 0 | E36: 0 | F36: 0 | H36: 0 | J36: 0 | L36: 0 | N36: 0 | P36: 0 | R36: 0 | T36: 0 | V36: 0 | X36: 0 | Z36: 0 | AB36: 0 | AD36: 0 | AF36: 0 | AH36: 0 | AJ36: 0 | AL36: 0 | AN36: 0 | AP36: 0 | AR36: 0 | AT36: 0 | AV36: 0 | AX36: 0 | AZ36: 0 | BB36: 0 | BD36: 0 | BF36: 0 | BH36: 0 | BJ36: 0 | BL36: 0 | BN36: 0 | BP36: 0 | BR36: 0 | BT36: 0 | BV36: 0 | BX36: 0 | BZ36: 0 | CB36: 0 | CD36: 0 | CF36: 0 | CH36: 0 | CJ36: 0 | CL36: 0 | CN36: 0 | CP36: 0 | CR36: 0 | CT36: 0 | CV36: 0 | CX36: 0 | CZ36: 0 | DB36: 0 | DD36: 0 | DF36: 0 | DH36: 0 | DJ36: 0 | DL36: 0 | DN36: 0 | DP36: 0 | DR36: 0 | DT36: 0 | DV36: 0 | DX36: 0 | DZ36: 0 | EB36: 0 | ED36: 0 | EF36: 0 | EH36: 0 | EJ36: 0 | EL36: 0 | EN36: 0 | EP36: 0 | ER36: 0 | ET36: 0 | EW36: 0 | EX36: 0 | EY36: 0
A37: 30 | C37: 0 | D37: 0 | E37: 0 | F37: 0 | H37: 0 | J37: 0 | L37: 0 | N37: 0 | P37: 0 | R37: 0 | T37: 0 | V37: 0 | X37: 0 | Z37: 0 | AB37: 0 | AD37: 0 | AF37: 0 | AH37: 0 | AJ37: 0 | AL37: 0 | AN37: 0 | AP37: 0 | AR37: 0 | AT37: 0 | AV37: 0 | AX37: 0 | AZ37: 0 | BB37: 0 | BD37: 0 | BF37: 0 | BH37: 0 | BJ37: 0 | BL37: 0 | BN37: 0 | BP37: 0 | BR37: 0 | BT37: 0 | BV37: 0 | BX37: 0 | BZ37: 0 | CB37: 0 | CD37: 0 | CF37: 0 | CH37: 0 | CJ37: 0 | CL37: 0 | CN37: 0 | CP37: 0 | CR37: 0 | CT37: 0 | CV37: 0 | CX37: 0 | CZ37: 0 | DB37: 0 | DD37: 0 | DF37: 0 | DH37: 0 | DJ37: 0 | DL37: 0 | DN37: 0 | DP37: 0 | DR37: 0 | DT37: 0 | DV37: 0 | DX37: 0 | DZ37: 0 | EB37: 0 | ED37: 0 | EF37: 0 | EH37: 0 | EJ37: 0 | EL37: 0 | EN37: 0 | EP37: 0 | ER37: 0 | ET37: 0 | EW37: 0 | EX37: 0 | EY37: 0
A38: 31 | C38: 0 | D38: 0 | E38: 0 | F38: 0 | H38: 0 | J38: 0 | L38: 0 | N38: 0 | P38: 0 | R38: 0 | T38: 0 | V38: 0 | X38: 0 | Z38: 0 | AB38: 0 | AD38: 0 | AF38: 0 | AH38: 0 | AJ38: 0 | AL38: 0 | AN38: 0 | AP38: 0 | AR38: 0 | AT38: 0 | AV38: 0 | AX38: 0 | AZ38: 0 | BB38: 0 | BD38: 0 | BF38: 0 | BH38: 0 | BJ38: 0 | BL38: 0 | BN38: 0 | BP38: 0 | BR38: 0 | BT38: 0 | BV38: 0 | BX38: 0 | BZ38: 0 | CB38: 0 | CD38: 0 | CF38: 0 | CH38: 0 | CJ38: 0 | CL38: 0 | CN38: 0 | CP38: 0 | CR38: 0 | CT38: 0 | CV38: 0 | CX38: 0 | CZ38: 0 | DB38: 0 | DD38: 0 | DF38: 0 | DH38: 0 | DJ38: 0 | DL38: 0 | DN38: 0 | DP38: 0 | DR38: 0 | DT38: 0 | DV38: 0 | DX38: 0 | DZ38: 0 | EB38: 0 | ED38: 0 | EF38: 0 | EH38: 0 | EJ38: 0 | EL38: 0 | EN38: 0 | EP38: 0 | ER38: 0 | ET38: 0 | EW38: 0 | EX38: 0 | EY38: 0
A39: 32 | C39: 0 | D39: 0 | E39: 0 | F39: 0 | H39: 0 | J39: 0 | L39: 0 | N39: 0 | P39: 0 | R39: 0 | T39: 0 | V39: 0 | X39: 0 | Z39: 0 | AB39: 0 | AD39: 0 | AF39: 0 | AH39: 0 | AJ39: 0 | AL39: 0 | AN39: 0 | AP39: 0 | AR39: 0 | AT39: 0 | AV39: 0 | AX39: 0 | AZ39: 0 | BB39: 0 | BD39: 0 | BF39: 0 | BH39: 0 | BJ39: 0 | BL39: 0 | BN39: 0 | BP39: 0 | BR39: 0 | BT39: 0 | BV39: 0 | BX39: 0 | BZ39: 0 | CB39: 0 | CD39: 0 | CF39: 0 | CH39: 0 | CJ39: 0 | CL39: 0 | CN39: 0 | CP39: 0 | CR39: 0 | CT39: 0 | CV39: 0 | CX39: 0 | CZ39: 0 | DB39: 0 | DD39: 0 | DF39: 0 | DH39: 0 | DJ39: 0 | DL39: 0 | DN39: 0 | DP39: 0 | DR39: 0 | DT39: 0 | DV39: 0 | DX39: 0 | DZ39: 0 | EB39: 0 | ED39: 0 | EF39: 0 | EH39: 0 | EJ39: 0 | EL39: 0 | EN39: 0 | EP39: 0 | ER39: 0 | ET39: 0 | EW39: 0 | EX39: 0 | EY39: 0
A40: 33 | C40: =SUM(H40+J40+L40+N40+P40+R40+AT40+BL40+BN40+T40+V40+X40+Z40+AB40+AD40+AF40+AH40+AJ40+AL40+AN40+AP40+AR40+AV40+AX40+AZ40+BX40+BB40+BD40+BF40+BH40+BJ40+BP40+BR40+BT40+BV40+BZ40) -> 0 | D40: =SUM(CB40+CD40+CF40+CH40+CJ40+CL40+CN40+CP40+CR40+CV40+CT40+EH40+DN40+CX40+CZ40+DB40+DD40+DF40+DH40+DJ40+DL40+DP40+DR40+DT40+DV40+DX40+DZ40+EB40+ED40+EF40+EJ40+EL40+EN40+EP40+ER40+ET40) -> 0 | E40: =C40+D40 -> 0 | F40: =IF(E40=0,0,$E$8-E40) -> 0 | H40: =ROUNDDOWN(IF(ISBLANK(G40),0,INT((1010/((G40/7.38)^4.7619))-10)),0) -> 0 | J40: =ROUNDDOWN(IF(ISBLANK(I40),0,INT((1010/((I40/7.38)^4.7619))-10)),0) -> 0 | L40: =ROUNDDOWN(IF(ISBLANK(K40),0,INT((1010/((K40/156.99)^4))-10)),0) -> 0 | N40: =ROUNDDOWN(IF(ISBLANK(M40),0,INT((1010/((M40/156.99)^4))-10)),0) -> 0 | P40: =ROUNDDOWN(IF(ISBLANK(O40),0,INT((1010/((676.5/O40)^2.439))-10)),0) -> 0 | R40: =ROUNDDOWN(IF(ISBLANK(Q40),0,INT((1010/((676.5/Q40)^2.439))-10)),0) -> 0 | T40: =ROUNDDOWN(IF(ISBLANK(S40),0,INT((1010/((60.38/S40)^1.1765))-10)),0) -> 0 | V40: =ROUNDDOWN(IF(ISBLANK(U40),0,INT((1010/((60.38/U40)^1.1765))-10)),0) -> 0 | X40: =ROUNDDOWN(IF(ISBLANK(W40),0,INT((1010/((W40/21.9)^4.1667))-10)),0) -> 0 | Z40: =ROUNDDOWN(IF(ISBLANK(Y40),0,INT((1010/((Y40/21.9)^4.1667))-10)),0) -> 0 | AB40: =ROUNDDOWN(IF(ISBLANK(AA40),0,INT((1010/((AA40/7.38)^4.7619))-10)),0) -> 0 | AD40: =ROUNDDOWN(IF(ISBLANK(AC40),0,INT((1010/((AC40/7.38)^4.7619))-10)),0) -> 0 | AF40: =ROUNDDOWN(IF(ISBLANK(AE40),0,INT((1010/((AE40/156.99)^4))-10)),0) -> 0 | AH40: =ROUNDDOWN(IF(ISBLANK(AG40),0,INT((1010/((AG40/156.99)^4))-10)),0) -> 0 | AJ40: =ROUNDDOWN(IF(ISBLANK(AI40),0,INT((1010/((194.45/AI40)^2.9412))-10)),0) -> 0 | AL40: =ROUNDDOWN(IF(ISBLANK(AK40),0,INT((1010/((194.45/AK40)^2.9412))-10)),0) -> 0 | AN40: =ROUNDDOWN(IF(ISBLANK(AM40),0,INT((1010/((71.02/AM40)^1.1765))-10)),0) -> 0 | AP40: =ROUNDDOWN(IF(ISBLANK(AO40),0,INT((1010/((71.02/AO40)^1.1765))-10)),0) -> 0 | AR40: =ROUNDDOWN(IF(ISBLANK(AQ40),0,INT((1010/((AQ40/44.45)^4))-10)),0) -> 0 | AT40: =ROUNDDOWN(IF(ISBLANK(AS40),0,INT((1010/((AS40/44.45)^4))-10)),0) -> 0 | AV40: =ROUNDDOWN(IF(ISBLANK(AU40),0,INT((1010/((AU40/11.41)^4.6512))-10)),0) -> 0 | AX40: =ROUNDDOWN(IF(ISBLANK(AW40),0,INT((1010/((AW40/11.41)^4.6512))-10)),0) -> 0 | AZ40: =ROUNDDOWN(IF(ISBLANK(AY40),0,INT((1010/((AY40/344.2)^3.8462))-10)),0) -> 0 | BB40: =ROUNDDOWN(IF(ISBLANK(BA40),0,INT((1010/((BA40/344.2)^3.8462))-10)),0) -> 0 | BD40: =ROUNDDOWN(IF(ISBLANK(BC40),0,INT((1010/((437.5/BC40)^1.9417))-10)),0) -> 0 | BF40: =ROUNDDOWN(IF(ISBLANK(BE40),0,INT((1010/((437.5/BE40)^1.9417))-10)),0) -> 0 | BH40: =ROUNDDOWN(IF(ISBLANK(BG40),0,INT((1010/((18.28/BG40)^1.2195))-10)),0) -> 0 | BJ40: =ROUNDDOWN(IF(ISBLANK(BI40),0,INT((1010/((18.28/BI40)^1.2195))-10)),0) -> 0 | BL40: =ROUNDDOWN(IF(ISBLANK(BK40),0,INT((1010/((BK40/44.45)^4))-10)),0) -> 0 | BN40: =ROUNDDOWN(IF(ISBLANK(BM40),0,INT((1010/((BM40/44.45)^4))-10)),0) -> 0 | BP40: =ROUNDDOWN(IF(ISBLANK(BO40),0,INT((1010/((BO40/23.09)^4.3478))-10)),0) -> 0 | BR40: =ROUNDDOWN(IF(ISBLANK(BQ40),0,INT((1010/((BQ40/23.09)^4.3478))-10)),0) -> 0 | BT40: =ROUNDDOWN(IF(ISBLANK(BS40),0,INT((1010/((13.94/BS40)^2.5316))-10)),0) -> 0 | BV40: =ROUNDDOWN(IF(ISBLANK(BU40),0,INT((1010/((13.94/BU40)^2.5316))-10)),0) -> 0 | BX40: =ROUNDDOWN(IF(ISBLANK(BW40),0,INT((1010/((18.28/BW40)^1.2195))-10)),0) -> 0 | BZ40: =ROUNDDOWN(IF(ISBLANK(BY40),0,INT((1010/((18.28/BY40)^1.2195))-10)),0) -> 0 | CB40: =ROUNDDOWN(IF(ISBLANK(CA40),0,INT((1010/((CA40/8.57)^3.2258))-10)),0) -> 0 | CD40: =ROUNDDOWN(IF(ISBLANK(CC40),0,INT((1010/((CC40/8.57)^3.2258))-10)),0) -> 0 | CF40: =ROUNDDOWN(IF(ISBLANK(CE40),0,INT((1010/((CE40/17.21)^4.4444))-10)),0) -> 0 | CH40: =ROUNDDOWN(IF(ISBLANK(CG40),0,INT((1010/((CG40/17.21)^4.4444))-10)),0) -> 0 | CJ40: =ROUNDDOWN(IF(ISBLANK(CI40),0,INT((1010/((194.45/CI40)^2.9412))-10)),0) -> 0 | CL40: =ROUNDDOWN(IF(ISBLANK(CK40),0,INT((1010/((194.45/CK40)^2.9412))-10)),0) -> 0 | CN40: =ROUNDDOWN(IF(ISBLANK(CM40),0,INT((1010/((18.28/CM40)^1.2195))-10)),0) -> 0 | CP40: =ROUNDDOWN(IF(ISBLANK(CO40),0,INT((1010/((18.28/CO40)^1.2195))-10)),0) -> 0 | CR40: =ROUNDDOWN(IF(ISBLANK(CQ40),0,INT((1010/((CQ40/369.31)^3.8462))-10)),0) -> 0 | CT40: =ROUNDDOWN(IF(ISBLANK(CS40),0,INT((1030/((CS40/234.84)^3.3333))-30)),0) -> 0 | CV40: =ROUNDDOWN(IF(ISBLANK(CU40),0,INT((1010/((CU40/8.57)^3.2258))-10)),0) -> 0 | CX40: =ROUNDDOWN(IF(ISBLANK(CW40),0,INT((1010/((CW40/8.57)^3.2258))-10)),0) -> 0 | CZ40: =ROUNDDOWN(IF(ISBLANK(CY40),0,INT((1010/((CY40/23.09)^4.3478))-10)),0) -> 0 | DB40: =ROUNDDOWN(IF(ISBLANK(DA40),0,INT((1010/((DA40/23.09)^4.3478))-10)),0) -> 0 | DD40: =ROUNDDOWN(IF(ISBLANK(DC40),0,INT((1010/((676.5/DC40)^2.439))-10)),0) -> 0 | DF40: =ROUNDDOWN(IF(ISBLANK(DE40),0,INT((1010/((676.5/DE40)^2.439))-10)),0) -> 0 | DH40: =ROUNDDOWN(IF(ISBLANK(DG40),0,INT((1010/((18.28/DG40)^1.2195))-10)),0) -> 0 | DJ40: =ROUNDDOWN(IF(ISBLANK(DI40),0,INT((1010/((18.28/DI40)^1.2195))-10)),0) -> 0 | DL40: =ROUNDDOWN(IF(ISBLANK(DK40),0,INT((1010/((DK40/369.31)^3.8462))-10)),0) -> 0 | DN40: =ROUNDDOWN(IF(ISBLANK(DM40),0,INT((1030/((DM40/234.84)^3.3333))-30)),0) -> 0 | DP40: =ROUNDDOWN(IF(ISBLANK(DO40),0,INT((1010/((DO40/11.07)^3.2258))-10)),0) -> 0 | DR40: =ROUNDDOWN(IF(ISBLANK(DQ40),0,INT((1010/((DQ40/13.62)^3.2258))-10)),0) -> 0 | DT40: =ROUNDDOWN(IF(ISBLANK(DS40),0,INT((1010/((DS40/37.25)^4.0816))-10)),0) -> 0 | DV40: =ROUNDDOWN(IF(ISBLANK(DU40),0,INT((1010/((DU40/37.25)^4.0816))-10)),0) -> 0 | DX40: =ROUNDDOWN(IF(ISBLANK(DW40),0,INT((1010/((13.94/DW40)^2.5316))-10)),0) -> 0 | DZ40: =ROUNDDOWN(IF(ISBLANK(DY40),0,INT((1010/((13.94/DY40)^2.5316))-10)),0) -> 0 | EB40: =ROUNDDOWN(IF(ISBLANK(EA40),0,INT((1010/((62.58/EA40)^1.0309))-10)),0) -> 0 | ED40: =ROUNDDOWN(IF(ISBLANK(EC40),0,INT((1010/((62.58/EC40)^1.0309))-10)),0) -> 0 | EF40: =ROUNDDOWN(IF(ISBLANK(EE40),0,INT((1010/((EE40/507.08)^3.8462))-10)),0) -> 0 | EH40: =ROUNDDOWN(IF(ISBLANK(EG40),0,INT((1030/((EG40/234.84)^3.3333))-30)),0) -> 0 | EJ40: =ROUNDDOWN(IF(ISBLANK(EI40),0,INT((1010/((EI40/120.83)^4))-10)),0) -> 0 | EL40: =ROUNDDOWN(IF(ISBLANK(EK40),0,INT((1010/((EK40/120.83)^4))-10)),0) -> 0 | EN40: =ROUNDDOWN(IF(ISBLANK(EM40),0,INT((1010/((437.5/EM40)^1.9417))-10)),0) -> 0 | EP40: =ROUNDDOWN(IF(ISBLANK(EO40),0,INT((1010/((437.5/EO40)^1.9417))-10)),0) -> 0 | ER40: =ROUNDDOWN(IF(ISBLANK(EQ40),0,INT((1010/((71.02/EQ40)^1.1765))-10)),0) -> 0 | ET40: =ROUNDDOWN(IF(ISBLANK(ES40),0,INT((1010/((71.02/ES40)^1.1765))-10)),0) -> 0 | EW40: =C40 -> 0 | EX40: =D40 -> 0 | EY40: =E40 -> 0
A41: 34 | C41: 0 | D41: 0 | E41: 0 | F41: 0 | H41: 0 | J41: 0 | L41: 0 | N41: 0 | P41: 0 | R41: 0 | T41: 0 | V41: 0 | X41: 0 | Z41: 0 | AB41: 0 | AD41: 0 | AF41: 0 | AH41: 0 | AJ41: 0 | AL41: 0 | AN41: 0 | AP41: 0 | AR41: 0 | AT41: 0 | AV41: 0 | AX41: 0 | AZ41: 0 | BB41: 0 | BD41: 0 | BF41: 0 | BH41: 0 | BJ41: 0 | BL41: 0 | BN41: 0 | BP41: 0 | BR41: 0 | BT41: 0 | BV41: 0 | BX41: 0 | BZ41: 0 | CB41: 0 | CD41: 0 | CF41: 0 | CH41: 0 | CJ41: 0 | CL41: 0 | CN41: 0 | CP41: 0 | CR41: 0 | CT41: 0 | CV41: 0 | CX41: 0 | CZ41: 0 | DB41: 0 | DD41: 0 | DF41: 0 | DH41: 0 | DJ41: 0 | DL41: 0 | DN41: 0 | DP41: 0 | DR41: 0 | DT41: 0 | DV41: 0 | DX41: 0 | DZ41: 0 | EB41: 0 | ED41: 0 | EF41: 0 | EH41: 0 | EJ41: 0 | EL41: 0 | EN41: 0 | EP41: 0 | ER41: 0 | ET41: 0 | EW41: 0 | EX41: 0 | EY41: 0
A42: 35 | C42: 0 | D42: 0 | E42: 0 | F42: 0 | H42: 0 | J42: 0 | L42: 0 | N42: 0 | P42: 0 | R42: 0 | T42: 0 | V42: 0 | X42: 0 | Z42: 0 | AB42: 0 | AD42: 0 | AF42: 0 | AH42: 0 | AJ42: 0 | AL42: 0 | AN42: 0 | AP42: 0 | AR42: 0 | AT42: 0 | AV42: 0 | AX42: 0 | AZ42: 0 | BB42: 0 | BD42: 0 | BF42: 0 | BH42: 0 | BJ42: 0 | BL42: 0 | BN42: 0 | BP42: 0 | BR42: 0 | BT42: 0 | BV42: 0 | BX42: 0 | BZ42: 0 | CB42: 0 | CD42: 0 | CF42: 0 | CH42: 0 | CJ42: 0 | CL42: 0 | CN42: 0 | CP42: 0 | CR42: 0 | CT42: 0 | CV42: 0 | CX42: 0 | CZ42: 0 | DB42: 0 | DD42: 0 | DF42: 0 | DH42: 0 | DJ42: 0 | DL42: 0 | DN42: 0 | DP42: 0 | DR42: 0 | DT42: 0 | DV42: 0 | DX42: 0 | DZ42: 0 | EB42: 0 | ED42: 0 | EF42: 0 | EH42: 0 | EJ42: 0 | EL42: 0 | EN42: 0 | EP42: 0 | ER42: 0 | ET42: 0 | EW42: 0 | EX42: 0 | EY42: 0
A43: 36 | C43: 0 | D43: 0 | E43: 0 | F43: 0 | H43: 0 | J43: 0 | L43: 0 | N43: 0 | P43: 0 | R43: 0 | T43: 0 | V43: 0 | X43: 0 | Z43: 0 | AB43: 0 | AD43: 0 | AF43: 0 | AH43: 0 | AJ43: 0 | AL43: 0 | AN43: 0 | AP43: 0 | AR43: 0 | AT43: 0 | AV43: 0 | AX43: 0 | AZ43: 0 | BB43: 0 | BD43: 0 | BF43: 0 | BH43: 0 | BJ43: 0 | BL43: 0 | BN43: 0 | BP43: 0 | BR43: 0 | BT43: 0 | BV43: 0 | BX43: 0 | BZ43: 0 | CB43: 0 | CD43: 0 | CF43: 0 | CH43: 0 | CJ43: 0 | CL43: 0 | CN43: 0 | CP43: 0 | CR43: 0 | CT43: 0 | CV43: 0 | CX43: 0 | CZ43: 0 | DB43: 0 | DD43: 0 | DF43: 0 | DH43: 0 | DJ43: 0 | DL43: 0 | DN43: 0 | DP43: 0 | DR43: 0 | DT43: 0 | DV43: 0 | DX43: 0 | DZ43: 0 | EB43: 0 | ED43: 0 | EF43: 0 | EH43: 0 | EJ43: 0 | EL43: 0 | EN43: 0 | EP43: 0 | ER43: 0 | ET43: 0 | EW43: 0 | EX43: 0 | EY43: 0
A44: 37 | C44: 0 | D44: 0 | E44: 0 | F44: 0 | H44: 0 | J44: 0 | L44: 0 | N44: 0 | P44: 0 | R44: 0 | T44: 0 | V44: 0 | X44: 0 | Z44: 0 | AB44: 0 | AD44: 0 | AF44: 0 | AH44: 0 | AJ44: 0 | AL44: 0 | AN44: 0 | AP44: 0 | AR44: 0 | AT44: 0 | AV44: 0 | AX44: 0 | AZ44: 0 | BB44: 0 | BD44: 0 | BF44: 0 | BH44: 0 | BJ44: 0 | BL44: 0 | BN44: 0 | BP44: 0 | BR44: 0 | BT44: 0 | BV44: 0 | BX44: 0 | BZ44: 0 | CB44: 0 | CD44: 0 | CF44: 0 | CH44: 0 | CJ44: 0 | CL44: 0 | CN44: 0 | CP44: 0 | CR44: 0 | CT44: 0 | CV44: 0 | CX44: 0 | CZ44: 0 | DB44: 0 | DD44: 0 | DF44: 0 | DH44: 0 | DJ44: 0 | DL44: 0 | DN44: 0 | DP44: 0 | DR44: 0 | DT44: 0 | DV44: 0 | DX44: 0 | DZ44: 0 | EB44: 0 | ED44: 0 | EF44: 0 | EH44: 0 | EJ44: 0 | EL44: 0 | EN44: 0 | EP44: 0 | ER44: 0 | ET44: 0 | EW44: 0 | EX44: 0 | EY44: 0
A45: 38 | C45: 0 | D45: 0 | E45: 0 | F45: 0 | H45: 0 | J45: 0 | L45: 0 | N45: 0 | P45: 0 | R45: 0 | T45: 0 | V45: 0 | X45: 0 | Z45: 0 | AB45: 0 | AD45: 0 | AF45: 0 | AH45: 0 | AJ45: 0 | AL45: 0 | AN45: 0 | AP45: 0 | AR45: 0 | AT45: 0 | AV45: 0 | AX45: 0 | AZ45: 0 | BB45: 0 | BD45: 0 | BF45: 0 | BH45: 0 | BJ45: 0 | BL45: 0 | BN45: 0 | BP45: 0 | BR45: 0 | BT45: 0 | BV45: 0 | BX45: 0 | BZ45: 0 | CB45: 0 | CD45: 0 | CF45: 0 | CH45: 0 | CJ45: 0 | CL45: 0 | CN45: 0 | CP45: 0 | CR45: 0 | CT45: 0 | CV45: 0 | CX45: 0 | CZ45: 0 | DB45: 0 | DD45: 0 | DF45: 0 | DH45: 0 | DJ45: 0 | DL45: 0 | DN45: 0 | DP45: 0 | DR45: 0 | DT45: 0 | DV45: 0 | DX45: 0 | DZ45: 0 | EB45: 0 | ED45: 0 | EF45: 0 | EH45: 0 | EJ45: 0 | EL45: 0 | EN45: 0 | EP45: 0 | ER45: 0 | ET45: 0 | EW45: 0 | EX45: 0 | EY45: 0
A46: 39 | C46: 0 | D46: 0 | E46: 0 | F46: 0 | H46: 0 | J46: 0 | L46: 0 | N46: 0 | P46: 0 | R46: 0 | T46: 0 | V46: 0 | X46: 0 | Z46: 0 | AB46: 0 | AD46: 0 | AF46: 0 | AH46: 0 | AJ46: 0 | AL46: 0 | AN46: 0 | AP46: 0 | AR46: 0 | AT46: 0 | AV46: 0 | AX46: 0 | AZ46: 0 | BB46: 0 | BD46: 0 | BF46: 0 | BH46: 0 | BJ46: 0 | BL46: 0 | BN46: 0 | BP46: 0 | BR46: 0 | BT46: 0 | BV46: 0 | BX46: 0 | BZ46: 0 | CB46: 0 | CD46: 0 | CF46: 0 | CH46: 0 | CJ46: 0 | CL46: 0 | CN46: 0 | CP46: 0 | CR46: 0 | CT46: 0 | CV46: 0 | CX46: 0 | CZ46: 0 | DB46: 0 | DD46: 0 | DF46: 0 | DH46: 0 | DJ46: 0 | DL46: 0 | DN46: 0 | DP46: 0 | DR46: 0 | DT46: 0 | DV46: 0 | DX46: 0 | DZ46: 0 | EB46: 0 | ED46: 0 | EF46: 0 | EH46: 0 | EJ46: 0 | EL46: 0 | EN46: 0 | EP46: 0 | ER46: 0 | ET46: 0 | EW46: 0 | EX46: 0 | EY46: 0
A47: 40 | C47: 0 | D47: 0 | E47: 0 | F47: 0 | H47: 0 | J47: 0 | L47: 0 | N47: 0 | P47: 0 | R47: 0 | T47: 0 | V47: 0 | X47: 0 | Z47: 0 | AB47: 0 | AD47: 0 | AF47: 0 | AH47: 0 | AJ47: 0 | AL47: 0 | AN47: 0 | AP47: 0 | AR47: 0 | AT47: 0 | AV47: 0 | AX47: 0 | AZ47: 0 | BB47: 0 | BD47: 0 | BF47: 0 | BH47: 0 | BJ47: 0 | BL47: 0 | BN47: 0 | BP47: 0 | BR47: 0 | BT47: 0 | BV47: 0 | BX47: 0 | BZ47: 0 | CB47: 0 | CD47: 0 | CF47: 0 | CH47: 0 | CJ47: 0 | CL47: 0 | CN47: 0 | CP47: 0 | CR47: 0 | CT47: 0 | CV47: 0 | CX47: 0 | CZ47: 0 | DB47: 0 | DD47: 0 | DF47: 0 | DH47: 0 | DJ47: 0 | DL47: 0 | DN47: 0 | DP47: 0 | DR47: 0 | DT47: 0 | DV47: 0 | DX47: 0 | DZ47: 0 | EB47: 0 | ED47: 0 | EF47: 0 | EH47: 0 | EJ47: 0 | EL47: 0 | EN47: 0 | EP47: 0 | ER47: 0 | ET47: 0 | EW47: 0 | EX47: 0 | EY47: 0
A48: 41 | C48: 0 | D48: 0 | E48: 0 | F48: 0 | H48: 0 | J48: 0 | L48: 0 | N48: 0 | P48: 0 | R48: 0 | T48: 0 | V48: 0 | X48: 0 | Z48: 0 | AB48: 0 | AD48: 0 | AF48: 0 | AH48: 0 | AJ48: 0 | AL48: 0 | AN48: 0 | AP48: 0 | AR48: 0 | AT48: 0 | AV48: 0 | AX48: 0 | AZ48: 0 | BB48: 0 | BD48: 0 | BF48: 0 | BH48: 0 | BJ48: 0 | BL48: 0 | BN48: 0 | BP48: 0 | BR48: 0 | BT48: 0 | BV48: 0 | BX48: 0 | BZ48: 0 | CB48: 0 | CD48: 0 | CF48: 0 | CH48: 0 | CJ48: 0 | CL48: 0 | CN48: 0 | CP48: 0 | CR48: 0 | CT48: 0 | CV48: 0 | CX48: 0 | CZ48: 0 | DB48: 0 | DD48: 0 | DF48: 0 | DH48: 0 | DJ48: 0 | DL48: 0 | DN48: 0 | DP48: 0 | DR48: 0 | DT48: 0 | DV48: 0 | DX48: 0 | DZ48: 0 | EB48: 0 | ED48: 0 | EF48: 0 | EH48: 0 | EJ48: 0 | EL48: 0 | EN48: 0 | EP48: 0 | ER48: 0 | ET48: 0 | EW48: 0 | EX48: 0 | EY48: 0
A49: 42 | C49: 0 | D49: 0 | E49: 0 | F49: 0 | H49: 0 | J49: 0 | L49: 0 | N49: 0 | P49: 0 | R49: 0 | T49: 0 | V49: 0 | X49: 0 | Z49: 0 | AB49: 0 | AD49: 0 | AF49: 0 | AH49: 0 | AJ49: 0 | AL49: 0 | AN49: 0 | AP49: 0 | AR49: 0 | AT49: 0 | AV49: 0 | AX49: 0 | AZ49: 0 | BB49: 0 | BD49: 0 | BF49: 0 | BH49: 0 | BJ49: 0 | BL49: 0 | BN49: 0 | BP49: 0 | BR49: 0 | BT49: 0 | BV49: 0 | BX49: 0 | BZ49: 0 | CB49: 0 | CD49: 0 | CF49: 0 | CH49: 0 | CJ49: 0 | CL49: 0 | CN49: 0 | CP49: 0 | CR49: 0 | CT49: 0 | CV49: 0 | CX49: 0 | CZ49: 0 | DB49: 0 | DD49: 0 | DF49: 0 | DH49: 0 | DJ49: 0 | DL49: 0 | DN49: 0 | DP49: 0 | DR49: 0 | DT49: 0 | DV49: 0 | DX49: 0 | DZ49: 0 | EB49: 0 | ED49: 0 | EF49: 0 | EH49: 0 | EJ49: 0 | EL49: 0 | EN49: 0 | EP49: 0 | ER49: 0 | ET49: 0 | EW49: 0 | EX49: 0 | EY49: 0
A50: 43 | C50: 0 | D50: 0 | E50: 0 | F50: 0 | H50: 0 | J50: 0 | L50: 0 | N50: 0 | P50: 0 | R50: 0 | T50: 0 | V50: 0 | X50: 0 | Z50: 0 | AB50: 0 | AD50: 0 | AF50: 0 | AH50: 0 | AJ50: 0 | AL50: 0 | AN50: 0 | AP50: 0 | AR50: 0 | AT50: 0 | AV50: 0 | AX50: 0 | AZ50: 0 | BB50: 0 | BD50: 0 | BF50: 0 | BH50: 0 | BJ50: 0 | BL50: 0 | BN50: 0 | BP50: 0 | BR50: 0 | BT50: 0 | BV50: 0 | BX50: 0 | BZ50: 0 | CB50: 0 | CD50: 0 | CF50: 0 | CH50: 0 | CJ50: 0 | CL50: 0 | CN50: 0 | CP50: 0 | CR50: 0 | CT50: 0 | CV50: 0 | CX50: 0 | CZ50: 0 | DB50: 0 | DD50: 0 | DF50: 0 | DH50: 0 | DJ50: 0 | DL50: 0 | DN50: 0 | DP50: 0 | DR50: 0 | DT50: 0 | DV50: 0 | DX50: 0 | DZ50: 0 | EB50: 0 | ED50: 0 | EF50: 0 | EH50: 0 | EJ50: 0 | EL50: 0 | EN50: 0 | EP50: 0 | ER50: 0 | ET50: 0 | EW50: 0 | EX50: 0 | EY50: 0
A51: 44 | C51: 0 | D51: 0 | E51: 0 | F51: 0 | H51: 0 | J51: 0 | L51: 0 | N51: 0 | P51: 0 | R51: 0 | T51: 0 | V51: 0 | X51: 0 | Z51: 0 | AB51: 0 | AD51: 0 | AF51: 0 | AH51: 0 | AJ51: 0 | AL51: 0 | AN51: 0 | AP51: 0 | AR51: 0 | AT51: 0 | AV51: 0 | AX51: 0 | AZ51: 0 | BB51: 0 | BD51: 0 | BF51: 0 | BH51: 0 | BJ51: 0 | BL51: 0 | BN51: 0 | BP51: 0 | BR51: 0 | BT51: 0 | BV51: 0 | BX51: 0 | BZ51: 0 | CB51: 0 | CD51: 0 | CF51: 0 | CH51: 0 | CJ51: 0 | CL51: 0 | CN51: 0 | CP51: 0 | CR51: 0 | CT51: 0 | CV51: 0 | CX51: 0 | CZ51: 0 | DB51: 0 | DD51: 0 | DF51: 0 | DH51: 0 | DJ51: 0 | DL51: 0 | DN51: 0 | DP51: 0 | DR51: 0 | DT51: 0 | DV51: 0 | DX51: 0 | DZ51: 0 | EB51: 0 | ED51: 0 | EF51: 0 | EH51: 0 | EJ51: 0 | EL51: 0 | EN51: 0 | EP51: 0 | ER51: 0 | ET51: 0 | EW51: 0 | EX51: 0 | EY51: 0
A52: 45 | C52: 0 | D52: 0 | E52: 0 | F52: 0 | H52: 0 | J52: 0 | L52: 0 | N52: 0 | P52: 0 | R52: 0 | T52: 0 | V52: 0 | X52: 0 | Z52: 0 | AB52: 0 | AD52: 0 | AF52: 0 | AH52: 0 | AJ52: 0 | AL52: 0 | AN52: 0 | AP52: 0 | AR52: 0 | AT52: 0 | AV52: 0 | AX52: 0 | AZ52: 0 | BB52: 0 | BD52: 0 | BF52: 0 | BH52: 0 | BJ52: 0 | BL52: 0 | BN52: 0 | BP52: 0 | BR52: 0 | BT52: 0 | BV52: 0 | BX52: 0 | BZ52: 0 | CB52: 0 | CD52: 0 | CF52: 0 | CH52: 0 | CJ52: 0 | CL52: 0 | CN52: 0 | CP52: 0 | CR52: 0 | CT52: 0 | CV52: 0 | CX52: 0 | CZ52: 0 | DB52: 0 | DD52: 0 | DF52: 0 | DH52: 0 | DJ52: 0 | DL52: 0 | DN52: 0 | DP52: 0 | DR52: 0 | DT52: 0 | DV52: 0 | DX52: 0 | DZ52: 0 | EB52: 0 | ED52: 0 | EF52: 0 | EH52: 0 | EJ52: 0 | EL52: 0 | EN52: 0 | EP52: 0 | ER52: 0 | ET52: 0 | EW52: 0 | EX52: 0 | EY52: 0
A53: 46 | C53: 0 | D53: 0 | E53: 0 | F53: 0 | H53: 0 | J53: 0 | L53: 0 | N53: 0 | P53: 0 | R53: 0 | T53: 0 | V53: 0 | X53: 0 | Z53: 0 | AB53: 0 | AD53: 0 | AF53: 0 | AH53: 0 | AJ53: 0 | AL53: 0 | AN53: 0 | AP53: 0 | AR53: 0 | AT53: 0 | AV53: 0 | AX53: 0 | AZ53: 0 | BB53: 0 | BD53: 0 | BF53: 0 | BH53: 0 | BJ53: 0 | BL53: 0 | BN53: 0 | BP53: 0 | BR53: 0 | BT53: 0 | BV53: 0 | BX53: 0 | BZ53: 0 | CB53: 0 | CD53: 0 | CF53: 0 | CH53: 0 | CJ53: 0 | CL53: 0 | CN53: 0 | CP53: 0 | CR53: 0 | CT53: 0 | CV53: 0 | CX53: 0 | CZ53: 0 | DB53: 0 | DD53: 0 | DF53: 0 | DH53: 0 | DJ53: 0 | DL53: 0 | DN53: 0 | DP53: 0 | DR53: 0 | DT53: 0 | DV53: 0 | DX53: 0 | DZ53: 0 | EB53: 0 | ED53: 0 | EF53: 0 | EH53: 0 | EJ53: 0 | EL53: 0 | EN53: 0 | EP53: 0 | ER53: 0 | ET53: 0 | EW53: 0 | EX53: 0 | EY53: 0
A54: 47 | C54: 0 | D54: 0 | E54: 0 | F54: 0 | H54: 0 | J54: 0 | L54: 0 | N54: 0 | P54: 0 | R54: 0 | T54: 0 | V54: 0 | X54: 0 | Z54: 0 | AB54: 0 | AD54: 0 | AF54: 0 | AH54: 0 | AJ54: 0 | AL54: 0 | AN54: 0 | AP54: 0 | AR54: 0 | AT54: 0 | AV54: 0 | AX54: 0 | AZ54: 0 | BB54: 0 | BD54: 0 | BF54: 0 | BH54: 0 | BJ54: 0 | BL54: 0 | BN54: 0 | BP54: 0 | BR54: 0 | BT54: 0 | BV54: 0 | BX54: 0 | BZ54: 0 | CB54: 0 | CD54: 0 | CF54: 0 | CH54: 0 | CJ54: 0 | CL54: 0 | CN54: 0 | CP54: 0 | CR54: 0 | CT54: 0 | CV54: 0 | CX54: 0 | CZ54: 0 | DB54: 0 | DD54: 0 | DF54: 0 | DH54: 0 | DJ54: 0 | DL54: 0 | DN54: 0 | DP54: 0 | DR54: 0 | DT54: 0 | DV54: 0 | DX54: 0 | DZ54: 0 | EB54: 0 | ED54: 0 | EF54: 0 | EH54: 0 | EJ54: 0 | EL54: 0 | EN54: 0 | EP54: 0 | ER54: 0 | ET54: 0 | EW54: 0 | EX54: 0 | EY54: 0
A55: 48 | C55: 0 | D55: 0 | E55: 0 | F55: 0 | H55: 0 | J55: 0 | L55: 0 | N55: 0 | P55: 0 | R55: 0 | T55: 0 | V55: 0 | X55: 0 | Z55: 0 | AB55: 0 | AD55: 0 | AF55: 0 | AH55: 0 | AJ55: 0 | AL55: 0 | AN55: 0 | AP55: 0 | AR55: 0 | AT55: 0 | AV55: 0 | AX55: 0 | AZ55: 0 | BB55: 0 | BD55: 0 | BF55: 0 | BH55: 0 | BJ55: 0 | BL55: 0 | BN55: 0 | BP55: 0 | BR55: 0 | BT55: 0 | BV55: 0 | BX55: 0 | BZ55: 0 | CB55: 0 | CD55: 0 | CF55: 0 | CH55: 0 | CJ55: 0 | CL55: 0 | CN55: 0 | CP55: 0 | CR55: 0 | CT55: 0 | CV55: 0 | CX55: 0 | CZ55: 0 | DB55: 0 | DD55: 0 | DF55: 0 | DH55: 0 | DJ55: 0 | DL55: 0 | DN55: 0 | DP55: 0 | DR55: 0 | DT55: 0 | DV55: 0 | DX55: 0 | DZ55: 0 | EB55: 0 | ED55: 0 | EF55: 0 | EH55: 0 | EJ55: 0 | EL55: 0 | EN55: 0 | EP55: 0 | ER55: 0 | ET55: 0 | EW55: 0 | EX55: 0 | EY55: 0
A56: 49 | C56: 0 | D56: 0 | E56: 0 | F56: 0 | H56: 0 | J56: 0 | L56: 0 | N56: 0 | P56: 0 | R56: 0 | T56: 0 | V56: 0 | X56: 0 | Z56: 0 | AB56: 0 | AD56: 0 | AF56: 0 | AH56: 0 | AJ56: 0 | AL56: 0 | AN56: 0 | AP56: 0 | AR56: 0 | AT56: 0 | AV56: 0 | AX56: 0 | AZ56: 0 | BB56: 0 | BD56: 0 | BF56: 0 | BH56: 0 | BJ56: 0 | BL56: 0 | BN56: 0 | BP56: 0 | BR56: 0 | BT56: 0 | BV56: 0 | BX56: 0 | BZ56: 0 | CB56: 0 | CD56: 0 | CF56: 0 | CH56: 0 | CJ56: 0 | CL56: 0 | CN56: 0 | CP56: 0 | CR56: 0 | CT56: 0 | CV56: 0 | CX56: 0 | CZ56: 0 | DB56: 0 | DD56: 0 | DF56: 0 | DH56: 0 | DJ56: 0 | DL56: 0 | DN56: 0 | DP56: 0 | DR56: 0 | DT56: 0 | DV56: 0 | DX56: 0 | DZ56: 0 | EB56: 0 | ED56: 0 | EF56: 0 | EH56: 0 | EJ56: 0 | EL56: 0 | EN56: 0 | EP56: 0 | ER56: 0 | ET56: 0 | EW56: 0 | EX56: 0 | EY56: 0
A57: 50 | C57: 0 | D57: 0 | E57: 0 | F57: 0 | H57: 0 | J57: 0 | L57: 0 | N57: 0 | P57: 0 | R57: 0 | T57: 0 | V57: 0 | X57: 0 | Z57: 0 | AB57: 0 | AD57: 0 | AF57: 0 | AH57: 0 | AJ57: 0 | AL57: 0 | AN57: 0 | AP57: 0 | AR57: 0 | AT57: 0 | AV57: 0 | AX57: 0 | AZ57: 0 | BB57: 0 | BD57: 0 | BF57: 0 | BH57: 0 | BJ57: 0 | BL57: 0 | BN57: 0 | BP57: 0 | BR57: 0 | BT57: 0 | BV57: 0 | BX57: 0 | BZ57: 0 | CB57: 0 | CD57: 0 | CF57: 0 | CH57: 0 | CJ57: 0 | CL57: 0 | CN57: 0 | CP57: 0 | CR57: 0 | CT57: 0 | CV57: 0 | CX57: 0 | CZ57: 0 | DB57: 0 | DD57: 0 | DF57: 0 | DH57: 0 | DJ57: 0 | DL57: 0 | DN57: 0 | DP57: 0 | DR57: 0 | DT57: 0 | DV57: 0 | DX57: 0 | DZ57: 0 | EB57: 0 | ED57: 0 | EF57: 0 | EH57: 0 | EJ57: 0 | EL57: 0 | EN57: 0 | EP57: 0 | ER57: 0 | ET57: 0 | EW57: 0 | EX57: 0 | EY57: 0
